{"text_format":"1","workbook":"xlsx","n_sheets":15,"sheets":["Inhalt und Impressum","Allgemeine Angaben","Ergebnisse","Diagramme","2a_Server","2b_Externe Speicher-Systeme","2c_Netzwerk-Geräte","2d_PDU","2e_Energie_Monitoring","2f_IT_Monitoring","2g_Kälteanlagen","Faktoren","2h_VirtuelleServer","2i_Services","Übersicht Datenbedarf"],"not_rendered":{"charts":32,"images":2,"macros":1,"external_links":0,"defined_names":162,"comments":0,"pivot_tables":1},"unopened":[],"bounds":{"document_bytes":16777216,"sheet_cells":100000,"rows_first":2000,"rows_last":500,"rows_between":2000,"halvings":0,"cell_chars":16384,"cell_head_chars":4096},"cells_cut":0,"cells_raw":0,"read":"whole","date_system":"1900"}

{"sheet":"Inhalt und Impressum","index":0,"n_rows":61,"n_cols":3,"rows_kept":61,"cut":false,"hidden":false,"merged":[[1,1,1,4],[20,1,20,3],[21,1,21,3]]}
[]
[null,"KPI4DCE und GCC Berechnungstool"]
[null,"Version: v2.5","2021-03-23"]
[]
[null,"Inhalt:"]
[null,"Allgemeine Angaben"]
[null,"Ergebnisse"]
[null,"Diagramme"]
[null,"2a IT-Inventarliste - Server"]
[null,"2b IT-Inventarliste - externe Speicher-Systeme"]
[null,"2c IT-Inventarliste - Netzwerk-Geräte"]
[null,"2d IT-Inventarliste - Neuanschaffung intelligenter PDUs"]
[null,"2e Monitoring Energie"]
[null,"2f Monitoring IT-Last"]
[null,"2g_Kälteanlagen"]
[null,"2h_VirtuelleServer"]
[null,"2i_Services"]
[null,"Übersicht Datenbedarf"]
[]
[null,"Entwickelt im Rahmen der Forschungsprojekte"]
[null,"Green Cloud Computing (2021): Gröger, Jens;  Liu, Ran; Stobbe, Lutz; Druschke,  Jan; Richter: Lebenszyklusbasierte Datenerhebung zu Umweltwirkungen des Cloud-Computing; \nÖko-Institut e.V., Berlin in Zusammenarbeit mit Fraunhofer-Institut für Zuverlässigkeit und Mikrointegration (IZM), Berlin. Im Auftrag des Umweltbundesamts (Forschungskannzahl 3717 34 348 0)"]
[null,"KPI4DCE (2018): Schödwell, Björn; Zarnekow, Rüdiger; Liu, Ran; Gröger, Jens; Wilkens, Marc: Kennzahlen und Indikatoren für die Beurteilung der Ressourceneffizienz von Rechenzentren und Prüfung der praktischen Anwendbarkeit. Hg. v. Umweltbundesamt (Forschungskennzahl 3715 31 601 0)"]
[null,"https://www.umweltbundesamt.de/publikationen/kennzahlen-indikatoren-fuer-die-beurteilung-der"]
[]
[null,"Autor/innen des Berechnungstools"]
[null,"Jens Gröger, Ran Liu"]
[null,"Öko-Institut e.V., Berlin"]
[null,"Borkumstraße 2, 13189 Berlin"]
[null,"j.groeger(a)oeko.de"]
[null,"www.oeko.de"]
[]
[null,"Versionsgeschichte und Änderungen"]
[null,"Version 2.2:"]
[null,"Bezeichnungen im Nutzen-Diagramm"]
[null,"Allokation des Wasserverbrauchs nur noch auf Server, Storage und Netzwerk. Nicht: Infrastruktur"]
[null,"Erklärtexten bei Diagrammen"]
[null,"Korrekturen bei BZ<1a"]
[null,"Energiemonitoring: JAZ und PUE automatisch berechnen, nicht importieren"]
[]
[]
[null,"Version 2.3:"]
[null,"Tabellenblatt 2i_Services"]
[null,"Ergebnisse: Aufwandskennzahlen"]
[null,"ADP, KEA, GWP für Brennstoffe"]
[null,"Mittelwertbildung im Mengengerüst Rechenzentrum korrigiert"]
[null,"Ergebnisübersicht Gebäudetechnik"]
[]
[null,"Version 2.3:"]
[null,"Aktualisierte ADP-Faktoren und Einheiten"]
[null,"Text-Umwandlung nach Import  standardmäßig"]
[null,"Berichtszeitraum mit im/exportieren"]
[null,"Bessere Default-Werte P_el Server, Storage, Netzwerk"]
[null,"Neue Berechnungsvorschrift Blade-Server und Storage"]
[null,"Textliche Änderungen Diagramme"]
[]
[null,"Version 2.4"]
[null,"Bezeichnung der KPIs bei Diagrammen"]
[]
[null,"Version 2.5"]
[null,"Zahlenformatierungen korrigiert"]
[null,"Allokation Services auf Hardware, Aufwand (bezogen auf Berichtszeitraum) korrigiert"]

{"sheet":"Allgemeine Angaben","index":1,"n_rows":24,"n_cols":3,"rows_kept":24,"cut":false,"hidden":false,"merged":[]}
[]
[]
[null,"Allgemeine Angaben"]
[]
[null,"Rechenzentrum"]
[null,"Bezeichung:","Testrechenzentrum"]
[null,"Adresse:","Weidenweg 25, 76090 Herbolzheim"]
[null,"Sonstiges:"]
[]
[null,"Betreiber Rechenzentrum"]
[null,"Bezeichnung:"]
[null,"Adresse:"]
[null,"Website:"]
[null,"Sonstiges:"]
[]
[null,"Datenbereitstellung durch"]
[null,"Name:"]
[null,"Mail:"]
[null,"Datum der Datenbereitstellung:","31.01.2019"]
[null,"Sonstiges:"]
[]
[null,"Berichtszeitraum (siehe Ergebnisse)"]
[null,"Bilanzdatum von:",{"$f":"Report_start","v":"2018-01-01"}]
[null,"Bilanzdatum bis:",{"$f":"Report_end","v":"2018-12-31"}]

{"sheet":"Ergebnisse","index":2,"n_rows":168,"n_cols":14,"rows_kept":168,"cut":false,"hidden":false,"merged":[[62,5,62,6],[62,7,62,8],[62,9,62,10],[100,5,100,6],[100,7,100,8]]}
[]
[null,"Berechnung Herstellungsaufwand, Aufwand Nutzungsphase, Nutzen des RZ (Performance) und Effizienzkennzahlen für Rechenzentren (KPI4DCE)"]
[]
[null,"Auswahl des Berichtszeitraums"]
[null,null,null,"Bitte eingeben!",null,null,null,null,null,"Abkürzung","Erläuterung und Diagrammbeschriftung"]
[null,"Start des Berichtszeitraums",null,"2018-01-01",null,null,null,null,null,"ADP","Abiotischer Rohstoffverbrauch (ADP)"]
[null,"Ende des Berichtszeitraums",null,"2018-12-31",null,null,null,null,null,"GWP","Treibhauseffekt (GWP:  Global Warming Potential)"]
[null,"(inklusive dieser Tag)",null,null,null,null,null,null,null,"KEA","Kumulierter Energieaufwand  (KEA)"]
[null,null,null,null,null,null,null,null,null,"Wasser","Wasserverbrauch"]
[]
[null,"Herstellungsaufwand"]
[]
[null,"Hardware","Herstellungsphase (gesamt)",null,null,null,"Herstellungsphase (bezogen auf Berichtszeitraum)",null,null,null,"Herstellungsphase bez. auf 1 Jahr"]
[null,null,"ADP","GWP","KEA","Wasser","ADP","GWP","KEA","Wasser","ADP","GWP","KEA","Wasser"]
[null,null,"kg Sb eq.","kg CO2 eq.","MJ","m²","kg Sb eq./BZ","kg CO2 eq./BZ","MJ/BZ","m³/BZ","kg Sb eq./a","kg CO2 eq./a","MJ/a","m³"]
[null,"Server",{"$f":"Production(\"Server\",\"ADP\",,TRUE)","v":15.208496811248551},{"$f":"Production(\"Server\",\"GWP\",,TRUE)","v":98117.784941818303},{"$f":"Production(\"Server\",\"KEA\",,TRUE)","v":1282921.8434127052},0,{"$f":"Production(\"Server\",\"ADP\",,,Report_start,Report_end)","v":3.7995217906267769},{"$f":"Production(\"Server\",\"GWP\",,,Report_start,Report_end)","v":24512.656744533662},{"$f":"Production(\"Server\",\"KEA\",,,Report_start,Report_end)","v":320510.93281700026},0,{"$f":"Production(\"Server\",\"ADP\")","v":3.8021242028121378},{"$f":"Production(\"Server\",\"GWP\")","v":24529.446235454576},{"$f":"Production(\"Server\",\"KEA\")","v":320730.46085317631},0]
[null,"Speichersysteme",{"$f":"Production(\"Storage\",\"ADP\",,TRUE)","v":8.937071987725373},{"$f":"Production(\"Storage\",\"GWP\",,TRUE)","v":36508.375486378303},{"$f":"Production(\"Storage\",\"KEA\",,TRUE)","v":436261.42448211682},0,{"$f":"Production(\"Storage\",\"ADP\",,,Report_start,Report_end)","v":1.4884924825552186},{"$f":"Production(\"Storage\",\"GWP\",,,Report_start,Report_end)","v":6080.5644775396222},{"$f":"Production(\"Storage\",\"KEA\",,,Report_start,Report_end)","v":72660.469968502235},0,{"$f":"Production(\"Storage\",\"ADP\")","v":1.4895119979542291},{"$f":"Production(\"Storage\",\"GWP\")","v":6084.7292477297178},{"$f":"Production(\"Storage\",\"KEA\")","v":72710.237413686147},0]
[null,"Netzwerk",{"$f":"Production(\"Network\",\"ADP\",,TRUE)","v":1.0702},{"$f":"Production(\"Network\",\"GWP\",,TRUE)","v":4917.7420000000002},{"$f":"Production(\"Network\",\"KEA\",,TRUE)","v":66560.758600000001},0,{"$f":"Production(\"Network\",\"ADP\",,,Report_start,Report_end)","v":0.1527810697174147},{"$f":"Production(\"Network\",\"GWP\",,,Report_start,Report_end)","v":702.05371272122818},{"$f":"Production(\"Network\",\"KEA\",,,Report_start,Report_end)","v":9502.1714633812462},0,{"$f":"Production(\"Network\",\"ADP\")","v":0.15288571428571429},{"$f":"Production(\"Network\",\"GWP\")","v":702.53457142857144},{"$f":"Production(\"Network\",\"KEA\")","v":9508.6797999999999},0]
[null,"Summe",{"$f":"SUM(C16:C18)","v":25.215768798973926},{"$f":"SUM(D16:D18)","v":139543.9024281966},1785744.0264948222,{"$f":"SUM(F16:F18)","v":0},{"$f":"SUM(G16:G18)","v":5.4407953428994107},{"$f":"SUM(H16:H18)","v":31295.27493479451},{"$f":"SUM(I16:I18)","v":402673.57424888376},{"$f":"SUM(J16:J18)","v":0},{"$f":"SUM(K16:K18)","v":5.4445219150520812},{"$f":"SUM(L16:L18)","v":31316.710054612864},{"$f":"SUM(M16:M18)","v":402949.37806686241},{"$f":"SUM(N16:N18)","v":0}]
[]
[]
[]
[null,"Aufwand Nutzungsphase"]
[]
[null,"Medium","Nutzungsphase (gesamte Nutzungsdauer)",null,null,null,"Nutzungsphase (nur Berichtszeitraum)",null,null,null,"Nutzungsphase bez. auf 1 Jahr"]
[null,null,"ADP","GWP","KEA","Wasser","ADP","GWP","KEA","Wasser","ADP","GWP","KEA","Wasser"]
[null,null,"kg Sb eq./ND","kg CO2 eq./ND","MJ/ND","m³/ND","kg Sb eq./BZ","kg CO2 eq./BZ","MJ","m³","kg Sb eq.","kg CO2 eq.","MJ","m³"]
[null,"Strom",{"$f":"Usephase($B28,C$26,,TRUE)","v":0.18004140215999997},{"$f":"Usephase($B28,D$26,,TRUE)","v":330696.15120000002},{"$f":"Usephase($B28,E$26,,TRUE)","v":5554193.0040000007},{"$f":"Usephase($B28,F$26,,TRUE)","v":"-"},{"$f":"Usephase($B28,G$26,,,Report_start,Report_end)","v":0.18004140215999997},330696.15120000002,5554193.0040000007,"-",{"$f":"Usephase($B28,K$26)","v":0.18016471818887669},{"$f":"Usephase($B28,L$26)","v":330922.65541315073},5557997.2457835618,"-"]
[null,"Brennstoff",{"$f":"Usephase($B29,C$26,,TRUE)","v":0},{"$f":"Usephase($B29,D$26,,TRUE)","v":0},{"$f":"Usephase($B29,E$26,,TRUE)","v":0},"-",0,0,0,"-",{"$f":"Usephase($B29,K$26)","v":0},0,0,"-"]
[null,"Wasser für Kühlung",{"$f":"Usephase(\"Wasser\",C$26,,TRUE)","v":"-"},{"$f":"Usephase(\"Wasser\",D$26,,TRUE)","v":"-"},"-",{"$f":"Usephase(\"Wasser\",F$26,,TRUE)","v":14.193018480492814},{"$f":"Usephase(\"Wasser\",G$26,,,Report_start,Report_end)","v":"-"},{"$f":"Usephase(\"Wasser\",H$26,,,Report_start,Report_end)","v":"-"},{"$f":"Usephase(\"Wasser\",I$26,,,Report_start,Report_end)","v":"-"},{"$f":"Usephase(\"Wasser\",J$26,,,Report_start,Report_end)","v":3.9972621492128679},{"$f":"Usephase(\"Wasser\",K$26)","v":"-"},"-","-",{"$f":"Usephase(\"Wasser\",N$26)","v":4}]
[null,"Kältemittel",{"$f":"Usephase(\"Kältemittel\",C26,,TRUE)","v":1.2347329971252568E-3},{"$f":"Usephase(\"Kältemittel\",D26,,TRUE)","v":20518.296553921973},{"$f":"Usephase(\"Kältemittel\",E26,,TRUE)","v":1707.5857557289528},{"$f":"Usephase(\"Kältemittel\",F26,,TRUE)","v":"-"},{"$f":"Usephase($B31,G$26,,,Report_start,Report_end)","v":3.4774501848049285E-4},{"$f":"Usephase($B31,H$26,,,Report_start,Report_end)","v":5778.6869152635181},{"$f":"Usephase($B31,I$26,,,Report_start,Report_end)","v":480.91728459958932},{"$f":"Usephase($B31,J$26,,,Report_start,Report_end)","v":"-"},{"$f":"Usephase($B31,K26)","v":3.4798320000000002E-4},{"$f":"Usephase($B31,L26)","v":5782.6449199999997},481.24667999999997,"-"]
[null,"Summe",{"$f":"SUM(C28:C31)","v":0.18127613515712523},351214.44775392197,5555900.5897557298,14.193018480492814,0.18038914717848048,336474.83811526356,5554673.9212846002,3.9972621492128679,0.18051270138887671,336705.30033315072,5558478.4924635617,4]
[]
[null,"Gebäudetechnik","PUE","Hinweis"]
[null,"Monitoringzeitraum",{"$f":"SUM(EnergieMonitoring[StrombedarfRZgesamt])/SUM(EnergieMonitoring[StrombedarfServer],EnergieMonitoring[StrombedarfStorage],EnergieMonitoring[StrombedarfNetzwerk])","v":1.2980251346499103},"gesamter im Monitoring erfasster Zeitraum"]
[null,"Berichtszeitraum",{"$f":"SUM(EnergieMonitoring[StrombedarfRZgesamt]*EnergieMonitoring[RatioMZzuBZ])/SUM((EnergieMonitoring[StrombedarfServer]+EnergieMonitoring[StrombedarfStorage]+EnergieMonitoring[StrombedarfNetzwerk])*EnergieMonitoring[RatioMZzuBZ])","v":1.2980251346499103},"nur Berichtszeitraum = korrigiert um RatioMZzuBZ"]
[]
[]
[null,"Allokation Nutzungsphase auf Hardware"]
[]
[null,"Allokation im Berichtszeitraum"]
[null,null,"Nennleistung \nim Berichts- zeitraum","Allokation \nnach Nennleistung","Energiebedarf pro Jahr im BZ Geräteangaben","Allokation nach Energiebedarf Geräteangeben","Energiebedarf im Berichts- zeitraum (Monitoring)","Allokation nach Energiebedarf  im Berichts- zeitraum (Monitoring)","Default Nenn- leistung im Berichtszeitraum","Allokation \nnach Defaultwerten","Auswahl Allokation"]
[null,null,"W","-","kWh/a","-","kWh/a","-","W","-","Monitoring","Bitte im Pulldown-Menü auswählen!"]
[null,"Server",{"$f":"SUM(Server[AnzahlServer]*Server[Nennleistung]*Server[KorrekturFaktorBZ])","v":30000},{"$f":"C44/C$48","v":0.40547426657931129},{"$f":"SUM(Server[AnzahlServer]*Server[EnergiebedarfProJahr]*Server[KorrekturFaktorBZ])","v":192720},{"$f":"E44/E$48","v":0.37144037569614757},{"$f":"SUM(EnergieMonitoring[StrombedarfServer]*EnergieMonitoring[RatioMZzuBZ])","v":157680},{"$f":"G44/G$48","v":0.30290456431535268},{"$f":"SUM(Server[AnzahlServer]*Pel_Server_Default*Server[KorrekturFaktorBZ])","v":40000},{"$f":"I44/I$48","v":0.50107389040695383},{"$f":"IF($K$43=\"Nennleistung\",D44,IF($K$43=\"Geräteangabe\",F44,IF($K$43=\"Monitoring\",H44,J44)))","v":0.30290456431535268}]
[null,"Storage",{"$f":"SUM(Speicher[AnzahlStorage]*Speicher[Nennleistung]*Speicher[KorrekturFaktorBZ])","v":25000},{"$f":"C45/C$48","v":0.33789522214942608},{"$f":"SUM(Speicher[AnzahlStorage]*Speicher[EnergiebedarfProJahr]*Speicher[KorrekturFaktorBZ])","v":187026},{"$f":"E45/E$48","v":0.36046600095967052},{"$f":"SUM(EnergieMonitoring[StrombedarfStorage]*EnergieMonitoring[RatioMZzuBZ])","v":190800},{"$f":"G45/G$48","v":0.36652835408022127},{"$f":"SUM(Speicher[AnzahlStorage]*Pel_Storage_Default*Speicher[KorrekturFaktorBZ])","v":17500},{"$f":"I45/I$48","v":0.21921982705304227},{"$f":"IF($K$43=\"Nennleistung\",D45,IF($K$43=\"Geräteangabe\",F45,IF($K$43=\"Monitoring\",H45,J45)))","v":0.36652835408022127}]
[null,"Netzwerk",{"$f":"SUM(Netzwerk[AnzahlNetzwerk]*Netzwerk[Nennleistung]*Netzwerk[KorrekturFaktorBZ])","v":2000},{"$f":"C46/C$48","v":2.7031617771954085E-2},{"$f":"SUM(Netzwerk[AnzahlNetzwerk]*Netzwerk[EnergiebedarfProJahr]*Netzwerk[KorrekturFaktorBZ])","v":19972.8},{"$f":"E46/E$48","v":3.8494729844873475E-2},{"$f":"SUM(EnergieMonitoring[StrombedarfNetzwerk]*EnergieMonitoring[RatioMZzuBZ])","v":52560},{"$f":"G46/G$48","v":0.10096818810511757},{"$f":"SUM(Netzwerk[AnzahlNetzwerk]*Pel_Switch_Default*Netzwerk[KorrekturFaktorBZ])","v":4000},{"$f":"I46/I$48","v":5.010738904069538E-2},0.10096818810511757]
[null,"Infrastruktur",{"$f":"(PUE_BZ-1)*SUM(C44:C46)","v":16987.432675044889},{"$f":"C47/C$48","v":0.22959889349930848},{"$f":"(PUE_BZ-1)*SUM(E44:E46)","v":119126.24919210057},{"$f":"E47/E$48","v":0.22959889349930851},{"$f":"(PUE_BZ-1)*SUM(G44:G46)","v":119520.00000000003},{"$f":"G47/G$48","v":0.22959889349930848},{"$f":"(PUE_BZ-1)*SUM(I44:I46)","v":18328.545780969485},{"$f":"I47/I$48","v":0.22959889349930848},0.22959889349930848]
[null,"Summe",{"$f":"SUM(C44:C47)","v":73987.432675044896},1,518845.04919210053,1,520560,1,79828.545780969493,1,1]
[]
[null,"Aufwand (Herstellung + Nutzung)"]
[]
[null,"Hardware","Aufwand (gesamt)",null,null,null,"Aufwand (bezogen auf Berichtszeitraum)",null,null,null,"Aufwand bez. auf 1 Jahr"]
[null,null,"ADP","GWP","KEA","Wasser","ADP","GWP","KEA","Wasser","ADP","GWP","KEA","Wasser"]
[null,null,"kg Sb eq.","kg CO2 eq.","MJ","m³","kg Sb eq./BZ","kg CO2 eq./BZ","MJ/BZ","m³/BZ","kg Sb eq./a","kg CO2 eq./a","MJ/a","m³/a"]
[null,"Server",{"$f":"C16+C$32*$K44","v":15.263406179989092},204502.24421997723,2965829.4909320753,{"$f":"F16+F$32*$K44","v":4.299130079153425},3.8541624866600923,126432.4209869164,2003047.0168575635,{"$f":"J16+J$32*$K44","v":1.210788949761574},3.8568023239797227,126519.01853553756,2004418.9668691098,{"$f":"N16+N$32*$K44","v":1.2116182572614107}]
[null,"Speichersysteme",{"$f":"C17+C$32*$K45","v":9.0035148311785385},165238.42895081718,2472656.5230786153,{"$f":"F17+F$32*$K45","v":5.202143703085194},1.5546102197644818,129408.13308133607,2108605.9597892752,{"$f":"J17+J$32*$K45","v":1.4651099163781602},1.5556750212848685,129496.76878892603,2110050.2104466651,{"$f":"N17+N$32*$K45","v":1.4661134163208851}]
[null,"Netzwerk",{"$f":"C18+C$32*$K46","v":1.0885031229135134},40379.228426052978,627529.97443979024,{"$f":"F18+F$32*$K46","v":1.4330433597178083},0.17099463506185325,34675.308460182147,570347.53281023575,{"$f":"J18+J$32*$K46","v":0.40359631658719136},0.1711117546749093,34699.058671456238,570738.18180531124,{"$f":"N18+N$32*$K46","v":0.40387275242047027}]
[null,"Infrastruktur",{"$f":"C$32*$K47","v":4.162080004990705E-2},80638.448585271166,1275628.6278000709,{"$f":"F$32*$K47","v":3.2587013385363868},4.1417148591463025E-2,{"$f":"H$32*$K47","v":77254.250521623457},1275346.9860764092,{"$f":"J$32*$K47","v":0.91776696648594225},4.1445516501457176E-2,77307.164391843748,1276220.5114093381,{"$f":"N$32*$K47","v":0.91839557399723393}]
[null,"Summe",{"$f":"SUM(C55:C58)","v":25.397044934131053},{"$f":"SUM(D55:D58)","v":490758.35018211848},7341644.6162505513,{"$f":"SUM(F55:F58)","v":14.193018480492816},5.6211844900778898,367770.11305005808,5957347.4955334831,{"$f":"SUM(J55:J58)","v":3.9972621492128679},5.6250346164409573,368022.01038776361,5961427.8705304246,{"$f":"SUM(N55:N58)","v":4}]
[]
[null,"Nutzen des Rechenzentrums"]
[]
[null,"Hardware","Performance Bezeichnung",null,null,"Gesamte Nutzungsdauer",null,"Im Berichtszeitraum",null,"Bezogen auf 1 Jahr"]
[null,"Server","Server: Rechenleistung",null,null,{"$f":"SUM(Server[AnzahlServer]*Server[ServerBenchmarkWert]*Server[MittlereCPUAuslastung]*Server[EffektiveND]*3600*24*TageProJahr)","v":952408368000},"ops/ND",{"$f":"SUM(Server[AnzahlServer]*Server[ServerBenchmarkWert]*Server[MittlereCPUAuslastung]*Server[KorrekturFaktorBZ]*3600*24*(_xlfn.DAYS(Report_end,Report_start)+1))","v":237939120000},"ops/BZ",{"$f":"H64/FaktorJahre(Report_start,Report_end,TageProJahr)","v":238102092000},"ops/a"]
[null,"Speichersysteme","Speicher: Belegte Speicherkapazität",null,null,{"$f":"SUM(Speicher[AnzahlStorage]*Speicher[SpeicherkapazitaetGByte]*Speicher[MittlereBelegungSpeicherplatz])","v":66600},"GByte/ND",{"$f":"SUM(Speicher[AnzahlStorage]*Speicher[SpeicherkapazitaetGByte]*Speicher[MittlereBelegungSpeicherplatz]*Speicher[KorrekturFaktorBZ]*(_xlfn.DAYS(Report_end,Report_start)+1)/TageProJahr)","v":66554.414784394248},"GByte/BZ",{"$f":"H65/FaktorJahre(Report_start,Report_end,TageProJahr)","v":66600},"GByte/a"]
[null,"Netzwerk","Netzwerk: Externer Datenverkehr",null,null,{"$f":"SUM(Netzwerk[AnzahlNetzwerk]*Netzwerk[MittlereGenutzteBandbreiteExternerDatenverkehr]*Netzwerk[EffektiveND]*3600*24*TageProJahr/1024)","v":10354837500},"Gbit/ND",{"$f":"SUM(Netzwerk[AnzahlNetzwerk]*Netzwerk[MittlereGenutzteBandbreiteExternerDatenverkehr]*Netzwerk[KorrekturFaktorBZ]*3600*24*(_xlfn.DAYS(Report_end,Report_start)+1)/1000)","v":1513728000},"Gbit/BZ",{"$f":"H66/FaktorJahre(Report_start,Report_end,TageProJahr)","v":1514764800},"Gbit/a"]
[null,"Infrastruktur","Infrastruktur: Bereitstellung IT-Strom und Klimatisierung",null,null,{"$f":"SUM(EnergieMonitoring[StrombedarfServer]+EnergieMonitoring[StrombedarfStorage]+EnergieMonitoring[StrombedarfNetzwerk])","v":401040},"kWh/MZ",{"$f":"SUM((EnergieMonitoring[StrombedarfServer]+EnergieMonitoring[StrombedarfStorage]+EnergieMonitoring[StrombedarfNetzwerk])*EnergieMonitoring[RatioMZzuBZ])","v":401040},"kWh/BZ",{"$f":"H67/FaktorJahre(Report_start,Report_end,TageProJahr)","v":401314.68493150687},"kWh/a"]
[]
[]
[null,"KPIs","= Nutzen / Aufwand"]
[]
[null,"Bezeichnungen",null,"ADP",null,"GWP",null,"KEA",null,"Wasser"]
[null,null,null,"kg Sb eq.",null,"kg CO2 eq.",null,"MJ",null,"m³"]
[null,"Server","ops","KPI Server ADP",null,"KPI Server GWP",null,"KPI Server CED",null,"KPI Server Water"]
[null,"Speicher","GByte","KPI Storage ADP",null,"KPI Storage GWP",null,"KPI Storage CED",null,"KPI Storage Water"]
[null,"Netzwerk","Mbit/s","KPI Network ADP",null,"KPI Network GWP",null,"KPI Network CED",null,"KPI Network Water"]
[null,"Infrastruktur",null,"KPI Infra ADP",null,"KPI Infra GWP",null,"KPI Infra CED",null,"KPI Infra Water"]
[]
[null,"Bezogen auf Berichtszeitraum *",null,"ADP",null,"GWP",null,"KEA",null,"Wasser"]
[null,null,null,"kg Sb eq.",null,"kg CO2 eq.",null,"MJ",null,"m³"]
[null,"Server","ops",{"$f":"H64/G55","v":61735622414.350067},{"$f":"$C81&\"/\"&D$80","v":"ops/kg Sb eq."},{"$f":"H64/H55","v":1881947.0365486606},{"$f":"$C81&\"/\"&F$80","v":"ops/kg CO2 eq."},{"$f":"H64/I55","v":118788.58459013388},{"$f":"$C81&\"/\"&H$80","v":"ops/MJ"},{"$f":"H64/J55","v":196515767712.32877},{"$f":"$C81&\"/\"&J$80","v":"ops/m³"}]
[null,"Speicher","GByte",{"$f":"H65/G56","v":42810.997855447662},{"$f":"$C82&\"/\"&D$80","v":"GByte/kg Sb eq."},{"$f":"H65/H56","v":0.51429854677343367},{"$f":"$C82&\"/\"&F$80","v":"GByte/kg CO2 eq."},{"$f":"H65/I56","v":3.1563229950770606E-2},{"$f":"$C82&\"/\"&H$80","v":"GByte/MJ"},{"$f":"H65/J56","v":45426.226415094345},{"$f":"$C82&\"/\"&J$80","v":"GByte/m³"}]
[null,"Netzwerk","Gbit",{"$f":"H66/G57","v":8852488263.4618607},"Gbit/kg Sb eq.",{"$f":"H66/H57","v":43654.348503870482},{"$f":"$C83&\"/\"&F$80","v":"Gbit/kg CO2 eq."},{"$f":"H66/I57","v":2654.0449689358838},{"$f":"$C83&\"/\"&H$80","v":"Gbit/MJ"},{"$f":"H66/J57","v":3750599145.2054796},{"$f":"$C83&\"/\"&J$80","v":"Gbit/m³"}]
[null,"Infrastruktur",null,{"$f":"SUM(G55:G57)/G59","v":0.99263195352072697},{"$f":"$D80&\"/\"&D$80","v":"kg Sb eq./kg Sb eq."},{"$f":"SUM(H55:H57)/H59","v":0.78993874765699568},{"$f":"$F80&\"/\"&F$80","v":"kg CO2 eq./kg CO2 eq."},{"$f":"SUM(I55:I57)/I59","v":0.78592032997359995},{"$f":"$H80&\"/\"&H$80","v":"MJ/MJ"},{"$f":"SUM(J55:J57)/J59","v":0.77040110650069149},{"$f":"$J80&\"/\"&J$80","v":"m³/m³"}]
[null,"* KPIs \"Bezogen auf Berichtszeitraum\" und \"Bezogen auf 1 Jahr\" sind identisch, da sich \"FaktorJahre\" rauskürzt"]
[]
[null,"Services des Rechenzentrums (Green Cloud Computing)"]
[]
[null,"Allokation Services auf Hardware"]
[]
[null,null,null,"Anteil an Hardware (Allokationsfaktoren Services)",null,null,null,"Aufwand (bezogen auf Berichtszeitraum)"]
[null,"Service","Service-Bezeichnung","Server","Storage","Netzwerk","Infrastruktur","ADP\n[kg Sb eq./a]","GWP\n[kg CO2 eq./a]","KEA\n[MJ/a]","Wasser\n[m³/a]"]
[null,"Service 1",{"$f":"IF('2i_Services'!D16<>\"\",'2i_Services'!D16,\"\")","v":"Virtuelle Server"},{"$f":"'2i_Services'!G16","v":0.8},{"$f":"'2i_Services'!H16","v":0.8},{"$f":"'2i_Services'!I16","v":0.9},{"$f":"'2i_Services'!J16","v":0.8},{"$f":"G$55*$D93+G$56*$E93+G$57*$F93+G$58*$G93","v":4.5140470555684971},297683.62128606468,4822912.7497078106,3.2381693510290135]
[null,"Service 2",{"$f":"IF('2i_Services'!D17<>\"\",'2i_Services'!D17,\"\")","v":"Lohnabrechnung"},{"$f":"'2i_Services'!G17","v":0.2},{"$f":"'2i_Services'!H17","v":0.2},{"$f":"'2i_Services'!I17","v":0.1},{"$f":"'2i_Services'!J17","v":0.2},1.1071374345093927,70086.491763993399,1134434.7458256732,0.75909279818385444]
[null,"Service 3",{"$f":"IF('2i_Services'!D18<>\"\",'2i_Services'!D18,\"\")","v":""},{"$f":"'2i_Services'!G18","v":0},{"$f":"'2i_Services'!H18","v":0},{"$f":"'2i_Services'!I18","v":0},{"$f":"'2i_Services'!J18","v":0},0,0,0,0]
[null,"Service 4",{"$f":"IF('2i_Services'!D19<>\"\",'2i_Services'!D19,\"\")","v":""},{"$f":"'2i_Services'!G19","v":0},{"$f":"'2i_Services'!H19","v":0},{"$f":"'2i_Services'!I19","v":0},{"$f":"'2i_Services'!J19","v":0},0,0,0,0]
[null,"Summe",null,{"$f":"SUM(D93:D96)","v":1},{"$f":"SUM(E93:E96)","v":1},{"$f":"SUM(F93:F96)","v":1},{"$f":"SUM(G93:G96)","v":1},{"$f":"SUM(H93:H96)","v":5.6211844900778898},367770.11305005808,5957347.495533484,3.9972621492128679]
[]
[null,"Services (Nutzen des Rechenzentrum)"]
[]
[null,"Hardware",{"$f":"'2i_Services'!D13","v":"Service-Bezeichnung"},{"$f":"'2i_Services'!E13","v":"Anzahl Service Einheiten (SU)"},{"$f":"'2i_Services'!F13","v":"Einheit Service Einheit"},"Anzahl Services \ngesamte Nutzungsdauer",null,"Anzahl Services \nim Berichtszeitraum"]
[null,"Service 1",{"$f":"IF('2i_Services'!D16<>\"\",'2i_Services'!D16,\"\")","v":"Virtuelle Server"},{"$f":"'2i_Services'!E16","v":1000},{"$f":"IF('2i_Services'!F16<>\"\",'2i_Services'!F16,\"1\")","v":"Stück"},{"$f":"D102","v":1000},{"$f":"E102&\"/ND\"","v":"Stück/ND"},{"$f":"F102*'2i_Services'!K16","v":1000},{"$f":"E102&\"/BZ\"","v":"Stück/BZ"}]
[null,"Service 2",{"$f":"IF('2i_Services'!D17<>\"\",'2i_Services'!D17,\"\")","v":"Lohnabrechnung"},{"$f":"'2i_Services'!E17","v":100000},{"$f":"IF('2i_Services'!F17<>\"\",'2i_Services'!F17,\"1\")","v":"Konten"},{"$f":"D103","v":100000},{"$f":"E103&\"/ND\"","v":"Konten/ND"},{"$f":"F103*'2i_Services'!K17","v":100000},{"$f":"E103&\"/BZ\"","v":"Konten/BZ"}]
[null,"Service 3",{"$f":"IF('2i_Services'!D18<>\"\",'2i_Services'!D18,\"\")","v":""},{"$f":"'2i_Services'!E18","v":0},{"$f":"IF('2i_Services'!F18<>\"\",'2i_Services'!F18,\"1\")","v":"1"},0,"1/ND",{"$f":"F104*'2i_Services'!K18","v":0},"1/BZ"]
[null,"Service 4",{"$f":"IF('2i_Services'!D19<>\"\",'2i_Services'!D19,\"\")","v":""},{"$f":"'2i_Services'!E19","v":0},{"$f":"IF('2i_Services'!F19<>\"\",'2i_Services'!F19,\"1\")","v":"1"},0,"1/ND",{"$f":"F105*'2i_Services'!K19","v":0},"1/BZ"]
[]
[]
[null,"Green Cloud Computing (GCC) Aufwandskennzahlen",null,null,null,null,"= Aufwand / Nutzen"]
[]
[null,"Bezeichnungen","GCC ADP\n[kg Sb eq./SU]","GCC GWP\n[kg CO2 eq./SU]","GCC KEA\n[MJ/SU]","GCC Wasser\n[m³/SU]"]
[null,{"$f":"C102","v":"Virtuelle Server"},{"$f":"IF($H102>0,H93/$H102,\"\")","v":4.5140470555684971E-3},297.68362128606469,4822.9127497078107,3.2381693510290135E-3]
[null,{"$f":"C103","v":"Lohnabrechnung"},1.1071374345093927E-5,{"$f":"IF($H103>0,I94/$H103,\"\")","v":0.70086491763993397},11.344347458256733,7.5909279818385442E-6]
[null,"","","","",""]
[null,"","","","",""]
[]
[]
[null,"Mengengerüst Rechenzentrum"]
[]
[null,"Server"]
[null,"Anzahl",null,{"$f":"SUM(Server[AnzahlServer])","v":100},"[Stck]"]
[null,"Mittlere Nutzungsdauer",null,{"$f":"SUM(Server[AnzahlServer]*Server[EffektiveND])/SUM(Server[AnzahlServer])","v":4},"[a]"]
[null,"Nennleistung ohne Redundanz",null,{"$f":"SUM(Server[AnzahlServer]*Server[Nennleistung])","v":30000},"[W]"]
[null,"Server Benchmark",null,{"$f":"SUM(Server[AnzahlServer]*Server[ServerBenchmarkWert])","v":50300},"[Ops/s]"]
[null,"Anzahl CPUs",null,{"$f":"SUM(Server[AnzahlServer]*Server[AnzahlCPU])","v":200},"[Anzahl]"]
[null,"Anzahl Kerne",null,{"$f":"SUM(Server[AnzahlServer]*Server[AnzahlKerneProCPU]*Server[AnzahlCPU])","v":800},"[Anzahl]"]
[null,"RAM",null,{"$f":"SUM(Server[AnzahlServer]*Server[GByteRAM])","v":1600},"[GByte]"]
[null,"Anzahl RAM Module",null,{"$f":"SUM(Server[AnzahlServer]*Server[AnzahlRAMModule])","v":2400},"[Anzahl]"]
[null,"Anzahl HDD",null,{"$f":"SUM(Server[AnzahlServer]*Server[AnzahlHDD])","v":200},"[Anzahl]"]
[null,"Anzahl SSD",null,{"$f":"SUM(Server[AnzahlServer]*Server[AnzahlSSD])","v":0},"[Anzahl]"]
[null,"Anzahl redundante Netzteile",null,{"$f":"SUM(Server[AnzahlServer]*Server[AnzahlNetzteile])","v":200},"[Anzahl]"]
[null,"Mittlere CPU-Auslastung pro Server",null,{"$f":"SUM(Server[AnzahlServer]*Server[MittlereCPUAuslastung])/SUM(Server[AnzahlServer])","v":0.15},"[-]"]
[null,"Mittlere Leistungsaufnahme pro Server",null,{"$f":"SUM(Server[AnzahlServer]*Server[MittlereLeistungsaufnahme])/SUM(Server[AnzahlServer])","v":220},"[W/Stck]"]
[null,"Energiebedarf pro Jahr",null,{"$f":"SUM(Server[AnzahlServer]*Server[EnergiebedarfProJahr])","v":192720},"[kWh]"]
[]
[null,"Speichersysteme"]
[null,"Anzahl",null,{"$f":"SUM(Speicher[AnzahlStorage])","v":50},"[Stck]"]
[null,"Mittlere Nutzungsdauer",null,{"$f":"SUM(Speicher[AnzahlStorage]*Speicher[EffektiveND])/SUM(Speicher[AnzahlStorage])","v":6},"[a]"]
[null,"Nennleistung ohne Redundanz",null,{"$f":"SUM(Speicher[AnzahlStorage]*Speicher[Nennleistung])","v":25000},"[W]"]
[null,"Speicherkapazität",null,{"$f":"SUM(Speicher[AnzahlStorage]*Speicher[SpeicherkapazitaetGByte])","v":222000},"[GByte]"]
[null,"Anzahl HDD",null,{"$f":"SUM(Speicher[AnzahlStorage]*Speicher[AnzahlHDD])","v":400},"[Anzahl]"]
[null,"Anzahl SSD",null,{"$f":"SUM(Speicher[AnzahlStorage]*Speicher[AnzahlSSD])","v":200},"[Anzahl]"]
[null,"Anzahl Netzteile",null,{"$f":"SUM(Speicher[AnzahlStorage]*Speicher[AnzahlNetzteile])","v":100},"[Anzahl]"]
[null,"Mittlere Belegung Speicherplatz",null,{"$f":"SUM(Speicher[AnzahlStorage]*Speicher[MittlereBelegungSpeicherplatz]*Speicher[SpeicherkapazitaetGByte])/SUM(Speicher[AnzahlStorage]*Speicher[SpeicherkapazitaetGByte])","v":0.3},"[-]"]
[null,"Mittlere Anzahl Speicherzugriffe pro Sekunde",null,{"$f":"SUM(Speicher[AnzahlStorage]*Speicher[MittlereAnzahlSpeicherzugriffeProSekundeIOPS])","v":4000},"[IO/s]"]
[null,"Mittlere Datenmenge Lesen Schreiben pro Sekunde",null,{"$f":"SUM(Speicher[AnzahlStorage]*Speicher[MittlereDatenmengeLesenSchreibenProSekunde])","v":150},"[GByte/s]"]
[null,"Mittlere Leistungsaufnahme pro Speicher",null,{"$f":"SUM(Speicher[AnzahlStorage]*Speicher[MittlereLeistungsaufnahme])/SUM(Speicher[AnzahlStorage])","v":427},"[W/Stck]"]
[null,"Energiebedarf pro Jahr",null,{"$f":"SUM(Speicher[AnzahlStorage]*Speicher[EnergiebedarfProJahr])","v":187026},"[kWh]"]
[]
[null,"Netzwerk-Geräte"]
[null,"Anzahl",null,{"$f":"SUM(Netzwerk[AnzahlNetzwerk])","v":20},"[Stck]"]
[null,"Mittlere Nutzungsdauer",null,{"$f":"SUM(Netzwerk[AnzahlNetzwerk]*Netzwerk[EffektiveND])/SUM(Netzwerk[AnzahlNetzwerk])","v":7},"[a]"]
[null,"Nennleistung ohne Redundanz",null,{"$f":"SUM(Netzwerk[AnzahlNetzwerk]*Netzwerk[Nennleistung])","v":2000},"[W]"]
[null,"Anzahl Ports",null,{"$f":"SUM(Netzwerk[AnzahlNetzwerk]*Netzwerk[AnzahlPorts])","v":960},"[Anzahl]"]
[null,"Maximale Bandbreite",null,{"$f":"SUM(Netzwerk[AnzahlNetzwerk]*Netzwerk[MaximaleBandbreiteProPort]*Netzwerk[AnzahlPorts])","v":960000},"[Mbit/s]"]
[null,"Anzahl Netzteile",null,{"$f":"SUM(Netzwerk[AnzahlNetzwerk]*Netzwerk[AnzahlNetzteile])","v":40},"[Anzahl]"]
[null,"Mittlere genutzte Bandbreite interner Datenverkehr",null,{"$f":"SUM(Netzwerk[AnzahlNetzwerk]*Netzwerk[MittlereGenutzteBandbreiteInternerDatenverkehr])","v":0},"[Mbit/s]"]
[null,"Mittlere genutzte Bandbreite externer Datenverkehr",null,{"$f":"SUM(Netzwerk[AnzahlNetzwerk]*Netzwerk[MittlereGenutzteBandbreiteExternerDatenverkehr])","v":48000},"[Mbit/s]"]
[null,"Mittlere Leistungsaufnahme pro Switch",null,{"$f":"SUM(Netzwerk[AnzahlNetzwerk]*Netzwerk[MittlereLeistungsaufnahme])/SUM(Netzwerk[AnzahlNetzwerk])","v":114},"[W/Stck]"]
[null,"Energiebedarf pro Jahr",null,{"$f":"SUM(Netzwerk[AnzahlNetzwerk]*Netzwerk[EnergiebedarfProJahr])","v":19972.8},"[kWh]"]
[]
[null,"Gebäudetechnik"]
[null,"Strombedarf RZ gesamt",null,{"$f":"SUM(EnergieMonitoring[StrombedarfRZgesamt])","v":520560},"[kWh]"]
[null,"Strombedarf IT",null,{"$f":"SUM(EnergieMonitoring[StrombedarfIT])","v":401040},"[kWh]"]
[null,"PUE",null,{"$f":"D162/D163","v":1.2980251346499103},"[-]"]
[null,"Mittlere elektrische Leistungsaufnahme",null,{"$f":"D162/(MAX(EnergieMonitoring[MonitoringEnde])-MIN(EnergieMonitoring[MonitoringStart]))/24","v":64.94011976047905},"[kWel]"]
[null,"Strombedarf Kühlsystem",null,{"$f":"SUM(EnergieMonitoring[StrombedarfKS])","v":119520},"[kWhel]"]
[null,"Kältearbeit Kühlsystem (thermisch)",null,{"$f":"SUM(EnergieMonitoring[KaeltearbeitKSth])","v":401040},"[kWhth]"]
[null,"Jahresarbeitszahl Kühlsystem (JAZ)",null,{"$f":"IF(D166>0,D167/D166,\"\")","v":3.3554216867469879},"[-]"]

{"sheet":"Diagramme","index":3,"n_rows":135,"n_cols":74,"rows_kept":135,"cut":false,"hidden":false,"merged":[[19,54,21,56],[19,58,21,60],[19,62,21,64],[19,66,21,68],[19,70,21,72],[37,54,39,56],[37,58,39,60],[37,62,39,64],[37,66,39,68],[37,70,39,72],[19,46,21,48],[37,42,39,44],[37,46,39,48],[19,50,21,52],[37,50,39,52],[19,27,21,29],[19,31,21,33],[37,27,39,29],[37,31,39,33],[19,42,21,44]]}
[null,null,null,null,null,null,null,null,null,"ADP & GWP",null,null,null,null,null,null,null,"KEA & Wasser",null,null,null,null,null,null,null,null,"Rel. Verteil.",null,null,null,null,null,null,null,"Nutzen",null,null,null,null,null,null,"KPIs\ntabellarisch",null,null,null,null,null,null,null,"KPI_iADP",null,null,null,null,null,null,null,"KPI_iGWP",null,null,null,null,null,null,null,"KPI_iCED",null,null,null,null,null,null,null,"KPI_iWater"]
[null,null,"Ressourcenaufwand ADP und GWP",null,null,null,null,null,null,null,"Ressourcenaufwand KEA und Wasser",null,null,null,null,null,null,null,null,null,null,null,null,null,null,null,null,"Nutzen des Rechenzentrums",null,null,null,null,null,null,null,"Tabelle der Ressourceneffizienzkennzahlen (KPI4DCE)",null,null,null,null,null,null,"Ressourceneffizienzkennzahlen (KPI4DCE)",null,null,null,null,null,null,null,"Ressourceneffizienzkennzahlen (KPI4DCE)",null,null,null,null,null,null,null,"Ressourceneffizienzkennzahlen (KPI4DCE)",null,null,null,null,null,null,null,"Ressourceneffizienzkennzahlen (KPI4DCE)"]
[null,null,"pro Jahr im angegebenen Berichtszeitraum",null,null,null,null,null,null,null,"pro Jahr im angegebenen Berichtszeitraum",null,null,null,null,null,null,null,null,null,null,null,null,null,null,null,null,"pro Jahr im angegebenen Berichtszeitraum",null,null,null,null,null,null,null,"Mit Erläuterung der jeweiligen Fragestellung",null,null,null,null,null,null,"Abiotische Rohstoffeffizienz (KPI_iADP)",null,null,null,null,null,null,null,"Treibhausgaseffizienz (KPI_iGWP)",null,null,null,null,null,null,null,"Kumulierter Energieaufwand Effizienz (KPI_iCED)",null,null,null,null,null,null,null,"Wasserbedarfseffizienz (KPI_iWater)"]
[]
[]
[null,null,null,null,null,null,null,null,null,null,null,null,null,null,null,null,null,null,null,null,null,null,null,null,null,null,null,null,null,null,null,null,null,null,null,"Name","Server","Speicher","Netzwerk","Infrastruktur"]
[null,null,null,null,null,null,null,null,null,null,null,null,null,null,null,null,null,null,null,null,null,null,null,null,null,null,null,null,null,null,null,null,null,null,null,"ADP","KPI InfraADP","KPI ServerADP","KPI StorageADP","KPI NetworkADP"]
[null,null,null,null,null,null,null,null,null,null,null,null,null,null,null,null,null,null,null,null,null,null,null,null,null,null,null,null,null,null,null,null,null,null,null,"KEA (CED)","KPI InfraCED","KPI ServerCED","KPI StorageCED","KPI NetworkCED"]
[null,null,null,null,null,null,null,null,null,null,null,null,null,null,null,null,null,null,null,null,null,null,null,null,null,null,null,null,null,null,null,null,null,null,null,"THG (GWP)","KPI InfraGWP","KPI ServerGWP","KPI StorageGWP","KPI NetworkGWP"]
[null,null,null,null,null,null,null,null,null,null,null,null,null,null,null,null,null,null,null,null,null,null,null,null,null,null,null,null,null,null,null,null,null,null,null,"Wasser (WD)","KPI InfraWater","KPI ServerWater","KPI StorageWater","KPI NetworkWater"]
[]
[]
[null,null,null,null,null,null,null,null,null,null,null,null,null,null,null,null,null,null,null,null,null,null,null,null,null,null,null,null,null,null,null,null,null,null,null,"Wert","Server","Speicher","Netzwerk","Infrastruktur"]
[null,null,null,null,null,null,null,null,null,null,null,null,null,null,null,null,null,null,null,null,null,null,null,null,null,null,null,null,null,null,null,null,null,null,null,"ADP",{"$f":"Ergebnisse!D81","v":61735622414.350067},{"$f":"Ergebnisse!D82","v":42810.997855447662},{"$f":"Ergebnisse!D83","v":8852488263.4618607},{"$f":"Ergebnisse!D84","v":0.99263195352072697}]
[null,null,null,null,null,null,null,null,null,null,null,null,null,null,null,null,null,null,null,null,null,null,null,null,null,null,null,null,null,null,null,null,null,null,null,"KEA (CED)",{"$f":"Ergebnisse!H81","v":118788.58459013388},{"$f":"Ergebnisse!H82","v":3.1563229950770606E-2},{"$f":"Ergebnisse!H83","v":2654.0449689358838},{"$f":"Ergebnisse!H84","v":0.78592032997359995}]
[null,null,null,null,null,null,null,null,null,null,null,null,null,null,null,null,null,null,null,null,null,null,null,null,null,null,null,null,null,null,null,null,null,null,null,"THG (GWP)",{"$f":"Ergebnisse!F81","v":1881947.0365486606},{"$f":"Ergebnisse!F82","v":0.51429854677343367},{"$f":"Ergebnisse!F83","v":43654.348503870482},{"$f":"Ergebnisse!F84","v":0.78993874765699568}]
[null,null,null,null,null,null,null,null,null,null,null,null,null,null,null,null,null,null,null,null,null,null,null,null,null,null,null,null,null,null,null,null,null,null,null,"Wasser (WD)",{"$f":"Ergebnisse!J81","v":196515767712.32877},{"$f":"Ergebnisse!J82","v":45426.226415094345},{"$f":"Ergebnisse!J83","v":3750599145.2054796},{"$f":"Ergebnisse!J84","v":0.77040110650069149}]
[]
[null,null,null,null,null,null,null,null,null,null,null,null,null,null,null,null,null,null,null,null,null,null,null,null,null,null,null,null,null,null,null,null,null,null,null,"DCiE (1/PUE)",null,null,null,{"$f":"1/PUE_BZ","v":0.77040110650069149}]
[null,null,null,null,null,null,null,null,null,null,null,null,null,null,null,null,null,null,null,null,null,null,null,null,null,null,null,{"$f":"AC58&\": \"&AD58","v":"Server: Wie viele Rechenoperationen führen alle Server pro Jahr aus?"},null,null,null,{"$f":"AC59&\": \"&AD59","v":"Speichersysteme: Wie viel Speicherplatz wird jährlich mit Daten belegt?"},null,null,null,null,null,null,null,null,null,null,{"$f":"AJ30&\": \"&AL30","v":"KPI Server ADP: Wie viele Rechenoperationen werden pro Rohstoffeinheit erbracht?"},null,null,null,{"$f":"AJ31&\": \"&AL31","v":"KPI Storage ADP: Wie viel Speicherplatz wird pro Rohstoffeinheit aktiv genutzt?"},null,null,null,{"$f":"AJ38&\": \"&AL38","v":"KPI Server GWP: Wie viele Rechenoperationen werden pro CO2-Einheit erbracht?"},null,null,null,{"$f":"AJ39&\": \"&AL39","v":"KPI Storage GWP: Wie viel Speicherplatz wird pro CO2-Einheit aktiv genutzt?"},null,null,null,{"$f":"AJ34&\": \"&AL34","v":"KPI Server CED: Wie viele Rechenoperationen werden pro Energieeinheit erbracht?"},null,null,null,{"$f":"AJ35&\": \"&AL35","v":"KPI Storage CED: Wie viel Speicherplatz wird pro Energieeinheit aktiv genutzt?"},null,null,null,{"$f":"AJ42&\": \"&AL42","v":"KPI Server Water: Wie viele Rechenoperationen werden pro Wassermenge erbracht?"},null,null,null,{"$f":"AJ43&\": \"&AL43","v":"KPI Storage Water: Wie viel Speicherplatz wird pro Wassermenge aktiv genutzt?"}]
[null,null,null,null,null,null,null,null,null,null,null,null,null,null,null,null,null,null,null,null,null,null,null,null,null,null,null,null,null,null,null,null,null,null,null,"Einheit","Server","Speicher","Netzwerk","Infrastruktur"]
[null,null,null,null,null,null,null,null,null,null,null,null,null,null,null,null,null,null,null,null,null,null,null,null,null,null,null,null,null,null,null,null,null,null,null,"ADP","ops/kg Sb.eq.","GByte/kg Sb.eq.","Gbit/kg Sb.eq.","kg Sb.eq./kg Sb.eq."]
[null,null,null,null,null,null,null,null,null,null,null,null,null,null,null,null,null,null,null,null,null,null,null,null,null,null,null,null,null,null,null,null,null,null,null,"KEA (CED)","ops/MJ ","GByte/MJ ","Gbit/MJ ","MJ/MJ"]
[null,null,null,null,null,null,null,null,null,null,null,null,null,null,null,null,null,null,null,null,null,null,null,null,null,null,null,null,null,null,null,null,null,null,null,"THG (GWP)","ops/kg CO2.eq.","GByte/kg CO2.eq.","Gbit/kg CO2.eq.","kg CO2.eq./kg CO2.eq."]
[null,null,null,null,null,null,null,null,null,null,null,null,null,null,null,null,null,null,null,null,null,null,null,null,null,null,null,null,null,null,null,null,null,null,null,"Wasser (WD)","ops/m³","GByte/m³","Gbit/m³","m³/m³"]
[]
[]
[null,null,null,null,null,null,null,null,null,null,null,null,null,null,null,null,null,null,null,null,null,null,null,null,null,null,null,null,null,null,null,null,null,null,null,"KPI-Bezeichner","Wert mit Einheit","Fragestellung"]
[null,null,null,null,null,null,null,null,null,null,null,null,null,null,null,null,null,null,null,null,null,null,null,null,null,null,null,null,null,null,null,null,null,null,null,"KPI Infra ADP",{"$f":"TEXT(AN14,\"0%\")&\" \"&AN22","v":"99% kg Sb.eq./kg Sb.eq."},"Welchen Wirkungsgrad hat die Infrastruktur in Bezug auf die eingesetzten Rohstoffe?"]
[null,null,null,null,null,null,null,null,null,null,null,null,null,null,null,null,null,null,null,null,null,null,null,null,null,null,null,null,null,null,null,null,null,null,null,"KPI Server ADP",{"$f":"TEXT(AK14,\"0,00E+00\")&\" \"&AK22","v":"6,17E+10 ops/kg Sb.eq."},"Wie viele Rechenoperationen werden pro Rohstoffeinheit erbracht?"]
[null,null,null,null,null,null,null,null,null,null,null,null,null,null,null,null,null,null,null,null,null,null,null,null,null,null,null,null,null,null,null,null,null,null,null,"KPI Storage ADP",{"$f":"TEXT(AL14,\"0,00E+00\")&\" \"&AL22","v":"4,28E+04 GByte/kg Sb.eq."},"Wie viel Speicherplatz wird pro Rohstoffeinheit aktiv genutzt?"]
[null,null,null,null,null,null,null,null,null,null,null,null,null,null,null,null,null,null,null,null,null,null,null,null,null,null,null,null,null,null,null,null,null,null,null,"KPI Network ADP",{"$f":"TEXT(AM14,\"0,00E+00\")&\" \"&AM22","v":"8,85E+09 Gbit/kg Sb.eq."},"Wie viele Daten werden pro Rohstoffeinheit übertragen?"]
[null,null,null,null,null,null,null,null,null,null,null,null,null,null,null,null,null,null,null,null,null,null,null,null,null,null,null,null,null,null,null,null,null,null,null,"KPI Infra CED",{"$f":"TEXT(AN15,\"0%\")&\" \"&AN23","v":"79% MJ/MJ"},"Welchen Wirkungsgrad hat die Infrastruktur in Bezug auf die eingesetzte Primärenergie?"]
[null,null,null,null,null,null,null,null,null,null,null,null,null,null,null,null,null,null,null,null,null,null,null,null,null,null,null,null,null,null,null,null,null,null,null,"KPI Server CED",{"$f":"TEXT(AK15,\"0,00E+00\")&\" \"&AK23","v":"1,19E+05 ops/MJ "},"Wie viele Rechenoperationen werden pro Energieeinheit erbracht?"]
[null,null,null,null,null,null,null,null,null,null,null,null,null,null,null,null,null,null,null,null,null,null,null,null,null,null,null,null,null,null,null,null,null,null,null,"KPI Storage CED",{"$f":"TEXT(AL15,\"0,00E+00\")&\" \"&AL23","v":"3,16E-02 GByte/MJ "},"Wie viel Speicherplatz wird pro Energieeinheit aktiv genutzt?"]
[null,null,null,null,null,null,null,null,null,null,null,null,null,null,null,null,null,null,null,null,null,null,null,null,null,null,null,null,null,null,null,null,null,null,null,"KPI Network CED",{"$f":"TEXT(AM15,\"0,00E+00\")&\" \"&AM23","v":"2,65E+03 Gbit/MJ "},"Wie viele Daten werden pro Energieeinheit übertragen?"]
[null,null,null,null,null,null,null,null,null,null,null,null,null,null,null,null,null,null,null,null,null,null,null,null,null,null,null,null,null,null,null,null,null,null,null,"KPI Infra GWP",{"$f":"TEXT(AN16,\"0%\")&\" \"&AN24","v":"79% kg CO2.eq./kg CO2.eq."},"Welchen Wirkungsgrad hat die Infrastruktur in Bezug auf die Treibhausgas-Emissionen?"]
[null,null,null,null,null,null,null,null,null,null,null,null,null,null,null,null,null,null,null,null,null,null,null,null,null,null,null,{"$f":"AC60&\": \"&AD60","v":"Netzwerk: Welche Datenmenge wird jährlich über die externe Netzwerkschnittstelle übertragen?"},null,null,null,{"$f":"AC61&\": \"&AD61","v":"Infrastruktur: Welche Strommenge stellt die Gebäudetechnik für die IT jährlich bereit?"},null,null,null,"KPI Server GWP",{"$f":"TEXT(AK16,\"0,00E+00\")&\" \"&AK24","v":"1,88E+06 ops/kg CO2.eq."},"Wie viele Rechenoperationen werden pro CO2-Einheit erbracht?",null,null,null,null,{"$f":"AJ32&\": \"&AL32","v":"KPI Network ADP: Wie viele Daten werden pro Rohstoffeinheit übertragen?"},null,null,null,{"$f":"AJ29&\": \"&AL29","v":"KPI Infra ADP: Welchen Wirkungsgrad hat die Infrastruktur in Bezug auf die eingesetzten Rohstoffe?"},null,null,null,{"$f":"AJ40&\": \"&AL40","v":"KPI Network GWP: Wie viele Daten werden pro CO2-Einheit übertragen?"},null,null,null,{"$f":"AJ37&\": \"&AL37","v":"KPI Infra GWP: Welchen Wirkungsgrad hat die Infrastruktur in Bezug auf die Treibhausgas-Emissionen?"},null,null,null,{"$f":"AJ36&\": \"&AL36","v":"KPI Network CED: Wie viele Daten werden pro Energieeinheit übertragen?"},null,null,null,{"$f":"AJ33&\": \"&AL33","v":"KPI Infra CED: Welchen Wirkungsgrad hat die Infrastruktur in Bezug auf die eingesetzte Primärenergie?"},null,null,null,{"$f":"AJ44&\": \"&AL44","v":"KPI Network Water: Wie viele Daten werden pro Wassermenge übertragen?"},null,null,null,{"$f":"AJ41&\": \"&AL41","v":"KPI Infra Water: Welchen Wirkungsgrad hat die Infrastruktur in Bezug auf das eingesetzte Wasser?"}]
[null,null,null,null,null,null,null,null,null,null,null,null,null,null,null,null,null,null,null,null,null,null,null,null,null,null,null,null,null,null,null,null,null,null,null,"KPI Storage GWP",{"$f":"TEXT(AL16,\"0,00E+00\")&\" \"&AL24","v":"5,14E-01 GByte/kg CO2.eq."},"Wie viel Speicherplatz wird pro CO2-Einheit aktiv genutzt?"]
[null,null,null,null,null,null,null,null,null,null,null,null,null,null,null,null,null,null,null,null,null,null,null,null,null,null,null,null,null,null,null,null,null,null,null,"KPI Network GWP",{"$f":"TEXT(AM16,\"0,00E+00\")&\" \"&AM24","v":"4,37E+04 Gbit/kg CO2.eq."},"Wie viele Daten werden pro CO2-Einheit übertragen?"]
[null,null,null,null,null,null,null,null,null,null,null,null,null,null,null,null,null,null,null,null,null,null,null,null,null,null,null,null,null,null,null,null,null,null,null,"KPI Infra Water",{"$f":"TEXT(AN17,\"0%\")&\" \"&AN25","v":"77% m³/m³"},"Welchen Wirkungsgrad hat die Infrastruktur in Bezug auf das eingesetzte Wasser?"]
[null,null,null,null,null,null,null,null,null,null,null,null,null,null,null,null,null,null,null,null,null,null,null,null,null,null,null,null,null,null,null,null,null,null,null,"KPI Server Water",{"$f":"TEXT(AK17,\"0,00E+00\")&\" \"&AK25","v":"1,97E+11 ops/m³"},"Wie viele Rechenoperationen werden pro Wassermenge erbracht?"]
[null,null,null,null,null,null,null,null,null,null,null,null,null,null,null,null,null,null,null,null,null,null,null,null,null,null,null,null,null,null,null,null,null,null,null,"KPI Storage Water",{"$f":"TEXT(AL17,\"0,00E+00\")&\" \"&AL25","v":"4,54E+04 GByte/m³"},"Wie viel Speicherplatz wird pro Wassermenge aktiv genutzt?"]
[null,null,null,null,null,null,null,null,null,null,null,null,null,null,null,null,null,null,null,null,null,null,null,null,null,null,null,null,null,null,null,null,null,null,null,"KPI Network Water",{"$f":"TEXT(AM17,\"0,00E+00\")&\" \"&AM25","v":"3,75E+09 Gbit/m³"},"Wie viele Daten werden pro Wassermenge übertragen?"]
[null,null,null,null,null,null,null,null,null,null,null,null,null,null,null,null,null,null,null,null,null,null,null,null,null,null,null,null,"Nutzen des Rechenzentrums",null,null,null,"KPI-Einheit"]
[null,null,null,null,null,null,null,null,null,null,null,null,null,null,null,null,null,null,null,null,null,null,null,null,null,null,null,null,{"$f":"Ergebnisse!C64&\" [\"&AF46&\"]\"","v":"Server: Rechenleistung [SPEC_int/a]"},null,{"$f":"Ergebnisse!J64","v":238102092000},"SPEC_int/a",1,"SPEC_int/a"]
[null,null,null,null,null,null,null,null,null,null,null,null,null,null,null,null,null,null,null,null,null,null,null,null,null,null,null,null,{"$f":"Ergebnisse!C65&\" [\"&AF47&\"]\"","v":"Speicher: Belegte Speicherkapazität [GByte/a]"},null,{"$f":"Ergebnisse!J65","v":66600},"GByte/a",1000000000,"Byte/a"]
[null,null,null,null,null,null,null,null,null,null,null,null,null,null,null,null,null,null,null,null,null,null,null,null,null,null,null,null,{"$f":"Ergebnisse!C66&\" [\"&AF48&\"]\"","v":"Netzwerk: Externer Datenverkehr [Gbit/a]"},null,{"$f":"Ergebnisse!J66","v":1514764800},"Gbit/a",1000000000,"Bit/a"]
[null,null,null,null,null,null,null,null,null,null,null,null,null,null,null,null,null,null,null,null,null,null,null,null,null,null,null,null,{"$f":"Ergebnisse!C67&\" [\"&AF49&\"]\"","v":"Infrastruktur: Bereitstellung IT-Strom und Klimatisierung [kWh/a]"},null,{"$f":"Ergebnisse!J67","v":401314.68493150687},"kWh/a",1000,"Wh/a"]
[]
[null,null,null,null,null,null,null,null,null,null,null,null,null,null,null,null,null,null,null,null,null,null,null,null,null,null,null,null,"Einheiten umgerechnet",null,null,null,"Faktor"]
[null,null,null,null,null,null,null,null,null,null,null,null,null,null,null,null,null,null,null,null,null,null,null,null,null,null,null,null,{"$f":"Ergebnisse!C64","v":"Server: Rechenleistung"},null,{"$f":"AE46/AG52","v":238.102092},"[Mrd. OPS SPEC_int/a]",1000000000]
[null,null,null,null,null,null,null,null,null,null,null,null,null,null,null,null,null,null,null,null,null,null,null,null,null,null,null,null,{"$f":"Ergebnisse!C65","v":"Speicher: Belegte Speicherkapazität"},null,{"$f":"AE47/AG53","v":66.599999999999994},"[Terabyte/a]",1000]
[null,null,null,null,null,null,null,null,null,null,null,null,null,null,null,null,null,null,null,null,null,null,null,null,null,null,null,null,{"$f":"Ergebnisse!C66","v":"Netzwerk: Externer Datenverkehr"},null,{"$f":"AE48/AG54","v":1.5147648},"[Exabit/a]",1000000000]
[null,null,null,null,null,null,null,null,null,null,null,null,null,null,null,null,null,null,null,null,null,null,null,null,null,null,null,null,{"$f":"Ergebnisse!C67","v":"Infrastruktur: Bereitstellung IT-Strom und Klimatisierung"},null,{"$f":"AE49/AG55","v":401.31468493150686},"[MWh/a]",1000]
[]
[null,null,null,null,null,null,null,null,null,null,null,null,null,null,null,null,null,null,null,null,null,null,null,null,null,null,null,null,"Fragestellungen"]
[null,null,null,null,null,null,null,null,null,null,null,null,null,null,null,null,null,null,null,null,null,null,null,null,null,null,null,null,{"$f":"Ergebnisse!B64","v":"Server"},"Wie viele Rechenoperationen führen alle Server pro Jahr aus?"]
[null,null,null,null,null,null,null,null,null,null,null,null,null,null,null,null,null,null,null,null,null,null,null,null,null,null,null,null,{"$f":"Ergebnisse!B65","v":"Speichersysteme"},"Wie viel Speicherplatz wird jährlich mit Daten belegt?"]
[null,null,null,null,null,null,null,null,null,null,null,null,null,null,null,null,null,null,null,null,null,null,null,null,null,null,null,null,{"$f":"Ergebnisse!B66","v":"Netzwerk"},"Welche Datenmenge wird jährlich über die externe Netzwerkschnittstelle übertragen?"]
[null,null,null,null,null,null,null,null,null,null,null,null,null,null,null,null,null,null,null,null,null,null,null,null,null,null,null,null,{"$f":"Ergebnisse!B67","v":"Infrastruktur"},"Welche Strommenge stellt die Gebäudetechnik für die IT jährlich bereit?"]
[]
[]
[null,null,null,null,null,null,null,null,null,null,null,null,null,null,null,null,null,null,null,null,null,null,null,null,null,null,null,null,"Name","Symbol","Decimal"]
[null,null,null,null,null,null,null,null,null,null,null,null,null,null,null,null,null,null,null,null,null,null,null,null,null,null,null,null,"yotta","Y",9.9999999999999998E+23]
[null,null,null,null,null,null,null,null,null,null,null,null,null,null,null,null,null,null,null,null,null,null,null,null,null,null,null,null,"zetta","Z",1E+21]
[null,null,null,null,null,null,null,null,null,null,null,null,null,null,null,null,null,null,null,null,null,null,null,null,null,null,null,null,"exa","E",1E+18]
[null,null,null,null,null,null,null,null,null,null,null,null,null,null,null,null,null,null,null,null,null,null,null,null,null,null,null,null,"peta","P",1000000000000000]
[null,null,null,null,null,null,null,null,null,null,null,null,null,null,null,null,null,null,null,null,null,null,null,null,null,null,null,null,"tera","T",1000000000000]
[null,null,null,null,null,null,null,null,null,null,null,null,null,null,null,null,null,null,null,null,null,null,null,null,null,null,null,null,"giga","G",1000000000]
[null,null,null,null,null,null,null,null,null,null,null,null,null,null,null,null,null,null,null,null,null,null,null,null,null,null,null,null,"mega","M",1000000]
[null,null,null,null,null,null,null,null,null,null,null,null,null,null,null,null,null,null,null,null,null,null,null,null,null,null,null,null,"kilo","k",1000]
[]
[]
[]
[]
[]
[]
[]
[]
[]
[]
[]
[]
[]
[]
[]
[]
[]
[]
[]
[]
[]
[]
[]
[]
[]
[]
[]
[]
[]
[]
[]
[]
[]
[]
[]
[]
[]
[]
[]
[]
[]
[]
[]
[]
[]
[]
[]
[]
[]
[]
[]
[]
[]
[]
[]
[]
[]
[]
[]
[]
[]
[null,"Stück"]
[null,"Jahre"]

{"sheet":"2a_Server","index":4,"n_rows":34,"n_cols":31,"rows_kept":34,"cut":false,"hidden":false,"merged":[[5,2,5,4],[6,2,6,4],[7,2,7,4],[10,1,10,5]]}
[]
[null,"IT-Inventarliste - Anlage 2a (Server) zur KPI4DCE-Berechnung"]
[null,"Dokumentation gemäß Anforderungen 3.1.2.1 und 3.2.2.1 der Vergabekriterien"]
[]
[null,"Allgemeine Angaben",null,null,null,null,null,"Legende"]
[null,"Rechenzentrum:",{"$f":"IF('Allgemeine Angaben'!C6<>\"\",'Allgemeine Angaben'!C6,\"\")","v":"Testrechenzentrum"},null,null,null,null,"Obligatorische Angaben Antragstellung Blauer Engel"]
[null,"Bilanzdatum von:",{"$f":"IF(Report_start<>\"\",Report_start,\"\")","v":"2018-01-01"},null,null,null,null,"Ergänzende Angaben KPI4DCE (über das [+] ausklappbar)"]
[null,"Bilanzdatum bis:",{"$f":"IF(Report_end<>\"\",Report_end,\"\")","v":"2018-12-31"},null,null,null,null,"* Angaben für Herstellungsaufwand"]
[null,null,null,null,null,null,null,"** Angaben für Zuordnung (Allokation)"]
[null,null,null,null,null,null,null,"*** Angaben für Nutzen"]
[null,"Hinweis: Alle Angaben werden pro Gerät (Rack-Server oder einzelner Blade-Server) gemacht, \nauch wenn dieses Gerät mehrfach vorkommt. Ausnahme: Netzteile pro Blade-System-Gehäuse",null,null,null,null,null,"Automatisch berechnete Werte (keine Eingabe)"]
[null,"*",null,"*","*",null,null,"**",null,"***","***",null,"*","*",null,null,null,"*","*","*","*","*","*","*","*",null,"***","**","**"]
[null,"Anzahl bauglei-\ncher Geräte","Eindeutige ID oder Komma-separierte ID-Liste","Datum der \nInbetriebnahme","Datum der \nAußerbetriebnahme","Hersteller","Modell","Nennleistung ohne Redundanz","Energieeffizienz-Standard Netzteile","Bezeichnung Server Benchmark ","Server Benchmark","Bei Inanspruchnahme der Ausnahmeregelung gem. 3.2.2.3 hier bitte Abweichung begründen","Geplante Nutzungsdauer","Servertyp","Anteil des einzelnen Bladeservers am Blade-System (z.B. 1/16) (optional)","Anschaffungskosten\n(optional)","Währung Anschaffungskosten\n(optional)","Anzahl CPUs","Anzahl Kerne pro CPU","RAM","Anzahl RAM Module","Anzahl HDD","Anzahl SSD","Speicherkapazität pro SSD","Anzahl Netzteile pro Rackserver- oder Blade-System-Gehäuse","Gewicht [kg]\n(optional)","Mittlere CPU-Auslastung","Mittlere Leistungsaufnahme","Energiebedarf pro Jahr","Effektive Nutzungsdauer","Korrekturfaktor Berichtszeitraum (für Jahres- und Leistungswerte)"]
[null,"[Stck]","[Text (,Text, Text, ...)]","[TT.MM.JJJJ]","[TT.MM.JJJJ]","[Text]","[Text]","[W/Stck]","(80 PLUS xxx)","(für neue Server: SPEC SERT 2: Eff_active)","[Zahlenwert]","[Text]","[Jahre]","[Rack | Blade]","(bei Rack-Server = 0, bei Blade-Server 0 bis 100%)","[Zahlenwert/Stck]","[z.B. EUR | USD]","[Anzahl/Stck]","[Anzahl]","[GByte/RAMModul]","[Anzahl/Stck]","[Anzahl/Stck]","[Anzahl/Stck]","[GByte/Stck]","[Anzahl/Stck]","[kg/Stck]","[100%]","[W/Stck]","[kWh/Stck]","[a]"]
[null,"AnzahlServer","UniqueID","DatumInbetriebnahme","DatumAusserbetriebnahme","Herstellername","Modellname","Nennleistung","NetzeilEnergieStandard","ServerBenchmarkBezeichnung","ServerBenchmarkWert","BegruendungAusnahme","GeplanteNutzungsdauer","ServertypRack_Blade","AnteilAmBladeSystem","AnschaffungskostenProStueck","WaehrungAnschaffungskosten","AnzahlCPU","AnzahlKerneProCPU","GByteRAM","AnzahlRAMModule","AnzahlHDD","AnzahlSSD","GByteSSD","AnzahlNetzteile","Gewicht","MittlereCPUAuslastung","MittlereLeistungsaufnahme","EnergiebedarfProJahr","EffektiveND","KorrekturFaktorBZ"]
[null,100,1,null,null,null,null,300,null,"SPECint_rate (ops/s)",503,null,4,"Rack",1,null,null,2,4,16,24,2,0,1000,2,null,0.15,220,{"$f":"Server[[#This Row],[MittlereLeistungsaufnahme]]*8.76","v":1927.2},{"$f":"EffektiveND(Server[[#This Row],[DatumInbetriebnahme]],Server[[#This Row],[DatumAusserbetriebnahme]],Server[[#This Row],[GeplanteNutzungsdauer]], ND_default_server)","v":4},{"$f":"KorrFaktBZ(Server[[#This Row],[DatumInbetriebnahme]]*1,Server[[#This Row],[DatumAusserbetriebnahme]]*1,Report_start*1,Report_end*1)","v":1}]
[null,null,null,null,null,null,null,null,null,null,null,null,null,null,null,null,null,null,null,null,null,null,null,null,null,null,null,null,null,{"$f":"EffektiveND(Server[[#This Row],[DatumInbetriebnahme]],Server[[#This Row],[DatumAusserbetriebnahme]],Server[[#This Row],[GeplanteNutzungsdauer]], ND_default_server)","v":3},{"$f":"KorrFaktBZ(Server[[#This Row],[DatumInbetriebnahme]]*1,Server[[#This Row],[DatumAusserbetriebnahme]]*1,Report_start*1,Report_end*1)","v":1}]
[null,null,null,null,null,null,null,null,null,null,null,null,null,null,null,null,null,null,null,null,null,null,null,null,null,null,null,null,null,{"$f":"EffektiveND(Server[[#This Row],[DatumInbetriebnahme]],Server[[#This Row],[DatumAusserbetriebnahme]],Server[[#This Row],[GeplanteNutzungsdauer]], ND_default_server)","v":3},{"$f":"KorrFaktBZ(Server[[#This Row],[DatumInbetriebnahme]]*1,Server[[#This Row],[DatumAusserbetriebnahme]]*1,Report_start*1,Report_end*1)","v":1}]
[null,null,null,null,null,null,null,null,null,null,null,null,null,null,null,null,null,null,null,null,null,null,null,null,null,null,null,null,null,{"$f":"EffektiveND(Server[[#This Row],[DatumInbetriebnahme]],Server[[#This Row],[DatumAusserbetriebnahme]],Server[[#This Row],[GeplanteNutzungsdauer]], ND_default_server)","v":3},{"$f":"KorrFaktBZ(Server[[#This Row],[DatumInbetriebnahme]]*1,Server[[#This Row],[DatumAusserbetriebnahme]]*1,Report_start*1,Report_end*1)","v":1}]
[null,null,null,null,null,null,null,null,null,null,null,null,null,null,null,null,null,null,null,null,null,null,null,null,null,null,null,null,null,{"$f":"EffektiveND(Server[[#This Row],[DatumInbetriebnahme]],Server[[#This Row],[DatumAusserbetriebnahme]],Server[[#This Row],[GeplanteNutzungsdauer]], ND_default_server)","v":3},{"$f":"KorrFaktBZ(Server[[#This Row],[DatumInbetriebnahme]]*1,Server[[#This Row],[DatumAusserbetriebnahme]]*1,Report_start*1,Report_end*1)","v":1}]
[null,null,null,null,null,null,null,null,null,null,null,null,null,null,null,null,null,null,null,null,null,null,null,null,null,null,null,null,null,{"$f":"EffektiveND(Server[[#This Row],[DatumInbetriebnahme]],Server[[#This Row],[DatumAusserbetriebnahme]],Server[[#This Row],[GeplanteNutzungsdauer]], ND_default_server)","v":3},{"$f":"KorrFaktBZ(Server[[#This Row],[DatumInbetriebnahme]]*1,Server[[#This Row],[DatumAusserbetriebnahme]]*1,Report_start*1,Report_end*1)","v":1}]
[null,null,null,null,null,null,null,null,null,null,null,null,null,null,null,null,null,null,null,null,null,null,null,null,null,null,null,null,null,{"$f":"EffektiveND(Server[[#This Row],[DatumInbetriebnahme]],Server[[#This Row],[DatumAusserbetriebnahme]],Server[[#This Row],[GeplanteNutzungsdauer]], ND_default_server)","v":3},{"$f":"KorrFaktBZ(Server[[#This Row],[DatumInbetriebnahme]]*1,Server[[#This Row],[DatumAusserbetriebnahme]]*1,Report_start*1,Report_end*1)","v":1}]
[null,null,null,null,null,null,null,null,null,null,null,null,null,null,null,null,null,null,null,null,null,null,null,null,null,null,null,null,null,{"$f":"EffektiveND(Server[[#This Row],[DatumInbetriebnahme]],Server[[#This Row],[DatumAusserbetriebnahme]],Server[[#This Row],[GeplanteNutzungsdauer]], ND_default_server)","v":3},{"$f":"KorrFaktBZ(Server[[#This Row],[DatumInbetriebnahme]]*1,Server[[#This Row],[DatumAusserbetriebnahme]]*1,Report_start*1,Report_end*1)","v":1}]
[null,null,null,null,null,null,null,null,null,null,null,null,null,null,null,null,null,null,null,null,null,null,null,null,null,null,null,null,null,{"$f":"EffektiveND(Server[[#This Row],[DatumInbetriebnahme]],Server[[#This Row],[DatumAusserbetriebnahme]],Server[[#This Row],[GeplanteNutzungsdauer]], ND_default_server)","v":3},{"$f":"KorrFaktBZ(Server[[#This Row],[DatumInbetriebnahme]]*1,Server[[#This Row],[DatumAusserbetriebnahme]]*1,Report_start*1,Report_end*1)","v":1}]
[null,null,null,null,null,null,null,null,null,null,null,null,null,null,null,null,null,null,null,null,null,null,null,null,null,null,null,null,null,{"$f":"EffektiveND(Server[[#This Row],[DatumInbetriebnahme]],Server[[#This Row],[DatumAusserbetriebnahme]],Server[[#This Row],[GeplanteNutzungsdauer]], ND_default_server)","v":3},{"$f":"KorrFaktBZ(Server[[#This Row],[DatumInbetriebnahme]]*1,Server[[#This Row],[DatumAusserbetriebnahme]]*1,Report_start*1,Report_end*1)","v":1}]
[null,null,null,null,null,null,null,null,null,null,null,null,null,null,null,null,null,null,null,null,null,null,null,null,null,null,null,null,null,{"$f":"EffektiveND(Server[[#This Row],[DatumInbetriebnahme]],Server[[#This Row],[DatumAusserbetriebnahme]],Server[[#This Row],[GeplanteNutzungsdauer]], ND_default_server)","v":3},{"$f":"KorrFaktBZ(Server[[#This Row],[DatumInbetriebnahme]]*1,Server[[#This Row],[DatumAusserbetriebnahme]]*1,Report_start*1,Report_end*1)","v":1}]
[null,null,null,null,null,null,null,null,null,null,null,null,null,null,null,null,null,null,null,null,null,null,null,null,null,null,null,null,null,{"$f":"EffektiveND(Server[[#This Row],[DatumInbetriebnahme]],Server[[#This Row],[DatumAusserbetriebnahme]],Server[[#This Row],[GeplanteNutzungsdauer]], ND_default_server)","v":3},{"$f":"KorrFaktBZ(Server[[#This Row],[DatumInbetriebnahme]]*1,Server[[#This Row],[DatumAusserbetriebnahme]]*1,Report_start*1,Report_end*1)","v":1}]
[null,null,null,null,null,null,null,null,null,null,null,null,null,null,null,null,null,null,null,null,null,null,null,null,null,null,null,null,null,{"$f":"EffektiveND(Server[[#This Row],[DatumInbetriebnahme]],Server[[#This Row],[DatumAusserbetriebnahme]],Server[[#This Row],[GeplanteNutzungsdauer]], ND_default_server)","v":3},{"$f":"KorrFaktBZ(Server[[#This Row],[DatumInbetriebnahme]]*1,Server[[#This Row],[DatumAusserbetriebnahme]]*1,Report_start*1,Report_end*1)","v":1}]
[null,null,null,null,null,null,null,null,null,null,null,null,null,null,null,null,null,null,null,null,null,null,null,null,null,null,null,null,null,{"$f":"EffektiveND(Server[[#This Row],[DatumInbetriebnahme]],Server[[#This Row],[DatumAusserbetriebnahme]],Server[[#This Row],[GeplanteNutzungsdauer]], ND_default_server)","v":3},{"$f":"KorrFaktBZ(Server[[#This Row],[DatumInbetriebnahme]]*1,Server[[#This Row],[DatumAusserbetriebnahme]]*1,Report_start*1,Report_end*1)","v":1}]
[null,null,null,null,null,null,null,null,null,null,null,null,null,null,null,null,null,null,null,null,null,null,null,null,null,null,null,null,null,{"$f":"EffektiveND(Server[[#This Row],[DatumInbetriebnahme]],Server[[#This Row],[DatumAusserbetriebnahme]],Server[[#This Row],[GeplanteNutzungsdauer]], ND_default_server)","v":3},{"$f":"KorrFaktBZ(Server[[#This Row],[DatumInbetriebnahme]]*1,Server[[#This Row],[DatumAusserbetriebnahme]]*1,Report_start*1,Report_end*1)","v":1}]
[null,null,null,null,null,null,null,null,null,null,null,null,null,null,null,null,null,null,null,null,null,null,null,null,null,null,null,null,null,{"$f":"EffektiveND(Server[[#This Row],[DatumInbetriebnahme]],Server[[#This Row],[DatumAusserbetriebnahme]],Server[[#This Row],[GeplanteNutzungsdauer]], ND_default_server)","v":3},{"$f":"KorrFaktBZ(Server[[#This Row],[DatumInbetriebnahme]]*1,Server[[#This Row],[DatumAusserbetriebnahme]]*1,Report_start*1,Report_end*1)","v":1}]
[null,null,null,null,null,null,null,null,null,null,null,null,null,null,null,null,null,null,null,null,null,null,null,null,null,null,null,null,null,{"$f":"EffektiveND(Server[[#This Row],[DatumInbetriebnahme]],Server[[#This Row],[DatumAusserbetriebnahme]],Server[[#This Row],[GeplanteNutzungsdauer]], ND_default_server)","v":3},{"$f":"KorrFaktBZ(Server[[#This Row],[DatumInbetriebnahme]]*1,Server[[#This Row],[DatumAusserbetriebnahme]]*1,Report_start*1,Report_end*1)","v":1}]
[null,null,null,null,null,null,null,null,null,null,null,null,null,null,null,null,null,null,null,null,null,null,null,null,null,null,null,null,null,{"$f":"EffektiveND(Server[[#This Row],[DatumInbetriebnahme]],Server[[#This Row],[DatumAusserbetriebnahme]],Server[[#This Row],[GeplanteNutzungsdauer]], ND_default_server)","v":3},{"$f":"KorrFaktBZ(Server[[#This Row],[DatumInbetriebnahme]]*1,Server[[#This Row],[DatumAusserbetriebnahme]]*1,Report_start*1,Report_end*1)","v":1}]
[null,null,null,null,null,null,null,null,null,null,null,null,null,null,null,null,null,null,null,null,null,null,null,null,null,null,null,null,null,{"$f":"EffektiveND(Server[[#This Row],[DatumInbetriebnahme]],Server[[#This Row],[DatumAusserbetriebnahme]],Server[[#This Row],[GeplanteNutzungsdauer]], ND_default_server)","v":3},{"$f":"KorrFaktBZ(Server[[#This Row],[DatumInbetriebnahme]]*1,Server[[#This Row],[DatumAusserbetriebnahme]]*1,Report_start*1,Report_end*1)","v":1}]

{"sheet":"2b_Externe Speicher-Systeme","index":5,"n_rows":34,"n_cols":24,"rows_kept":34,"cut":false,"hidden":false,"merged":[[5,2,5,4],[6,2,6,4],[7,2,7,4]]}
[]
[null,"IT-Inventarliste - Anlage 2b (externe Speicher-Systeme) zur KPI4DCE-Berechnung"]
[null,"Dokumentation gemäß Anforderungen 3.1.2.1 und 3.2.2.1 der Vergabekriterien"]
[]
[null,"Allgemeine Angaben",null,null,null,null,null,"Legende"]
[null,"Rechenzentrum:",{"$f":"IF('Allgemeine Angaben'!C6<>\"\",'Allgemeine Angaben'!C6,\"\")","v":"Testrechenzentrum"},null,null,null,null,"Obligatorische Angaben Antragstellung Blauer Engel"]
[null,"Bilanzdatum von:",{"$f":"IF(Report_start<>\"\",Report_start,\"\")","v":"2018-01-01"},null,null,null,null,"Ergänzende Angaben KPI4DCE (über das [+] ausklappbar)"]
[null,"Bilanzdatum bis:",{"$f":"IF(Report_end<>\"\",Report_end,\"\")","v":"2018-12-31"},null,null,null,null,"* Angaben für Herstellungsaufwand"]
[null,null,null,null,null,null,null,"** Angaben für Zuordnung (Allokation)"]
[null,null,null,null,null,null,null,"*** Angaben für Nutzen"]
[null,"Hinweis: Alle Angaben werden pro Gerät gemacht, auch wenn dieses mehrfach vorkommt",null,null,null,null,null,"Automatisch berechnete Werte (keine Eingabe)"]
[null,"*",null,"*","*",null,null,"**","***","*","*","*","","","*","*","","***","(***)","(***)","**","**"]
[null,"Anzahl bauglei-\ncher Geräte","Eindeutige ID oder Komma-separierte ID-Liste","Datum der \nInbetriebnahme","Datum der \nAußerbetriebnahme","Hersteller","Modell","Nennleistung ohne Redundanz","Speicherkapazität pro Gerät","Anzahl HDD","Anzahl SSD","Geplante Nutzungsdauer","Anschaffungskosten","Währung Anschaffungskosten","Speicherkapazität pro SSD","Anzahl Netzteile","Gewicht","Mittlere Belegung Speicherplatz","Mittlere Anzahl Speicherzugriffe pro Sekunde","Mittlere Datenmenge Lesen Schreiben pro Sekunde","Mittlere Leistungsaufnahme","Energiebedarf pro Jahr","Effektive Nutzungsdauer","Korrekturfaktor Berichtszeitraum (für Jahres- und Leistungswerte)"]
[null,"[Stck]","[Text (,Text, Text, ...)]","[TT.MM.JJJJ]","[TT.MM.JJJJ]","[Text]","[Text]","[W/Stck]","[GByte/Stck]","[Anzahl/Stck]","[Anzahl/Stck]","[Jahre]","[Zahlenwert]","[z.B. EUR | USD]","[GByte/Stck]","[Anzahl/Stck]","[kg/Stck]","[-]","[IO/s]","[GByte/s]","[W/Stck]","[kWh/Stck]","[a]"]
[null,"AnzahlStorage","UniqueID","DatumInbetriebnahme","DatumAusserbetriebnahme","Herstellername","Modellname","Nennleistung","SpeicherkapazitaetGByte","AnzahlHDD","AnzahlSSD","GeplanteNutzungsdauer","AnschaffungskostenProStueck","WaehrungAnschaffungskosten","GByteSSD","AnzahlNetzteile","Gewicht","MittlereBelegungSpeicherplatz","MittlereAnzahlSpeicherzugriffeProSekundeIOPS","MittlereDatenmengeLesenSchreibenProSekunde","MittlereLeistungsaufnahme","EnergiebedarfProJahr","EffektiveND","KorrekturFaktorBZ"]
[null,50,1,null,null,null,null,500,4440,8,4,6,null,null,500,2,null,0.3,80,3,427,{"$f":"Speicher[[#This Row],[MittlereLeistungsaufnahme]]*8.76","v":3740.52},{"$f":"EffektiveND(Speicher[[#This Row],[DatumInbetriebnahme]],Speicher[[#This Row],[DatumAusserbetriebnahme]],Speicher[[#This Row],[GeplanteNutzungsdauer]], ND_default_storage)","v":6},{"$f":"KorrFaktBZ(Speicher[[#This Row],[DatumInbetriebnahme]]*1,Speicher[[#This Row],[DatumAusserbetriebnahme]]*1,Report_start*1,Report_end*1)","v":1}]
[null,null,null,null,null,null,null,null,null,null,null,null,null,null,null,null,null,null,null,null,null,null,{"$f":"EffektiveND(Speicher[[#This Row],[DatumInbetriebnahme]],Speicher[[#This Row],[DatumAusserbetriebnahme]],Speicher[[#This Row],[GeplanteNutzungsdauer]], ND_default_storage)","v":3},{"$f":"KorrFaktBZ(Speicher[[#This Row],[DatumInbetriebnahme]]*1,Speicher[[#This Row],[DatumAusserbetriebnahme]]*1,Report_start*1,Report_end*1)","v":1}]
[null,null,null,null,null,null,null,null,null,null,null,null,null,null,null,null,null,null,null,null,null,null,{"$f":"EffektiveND(Speicher[[#This Row],[DatumInbetriebnahme]],Speicher[[#This Row],[DatumAusserbetriebnahme]],Speicher[[#This Row],[GeplanteNutzungsdauer]], ND_default_storage)","v":3},{"$f":"KorrFaktBZ(Speicher[[#This Row],[DatumInbetriebnahme]]*1,Speicher[[#This Row],[DatumAusserbetriebnahme]]*1,Report_start*1,Report_end*1)","v":1}]
[null,null,null,null,null,null,null,null,null,null,null,null,null,null,null,null,null,null,null,null,null,null,{"$f":"EffektiveND(Speicher[[#This Row],[DatumInbetriebnahme]],Speicher[[#This Row],[DatumAusserbetriebnahme]],Speicher[[#This Row],[GeplanteNutzungsdauer]], ND_default_storage)","v":3},{"$f":"KorrFaktBZ(Speicher[[#This Row],[DatumInbetriebnahme]]*1,Speicher[[#This Row],[DatumAusserbetriebnahme]]*1,Report_start*1,Report_end*1)","v":1}]
[null,null,null,null,null,null,null,null,null,null,null,null,null,null,null,null,null,null,null,null,null,null,{"$f":"EffektiveND(Speicher[[#This Row],[DatumInbetriebnahme]],Speicher[[#This Row],[DatumAusserbetriebnahme]],Speicher[[#This Row],[GeplanteNutzungsdauer]], ND_default_storage)","v":3},{"$f":"KorrFaktBZ(Speicher[[#This Row],[DatumInbetriebnahme]]*1,Speicher[[#This Row],[DatumAusserbetriebnahme]]*1,Report_start*1,Report_end*1)","v":1}]
[null,null,null,null,null,null,null,null,null,null,null,null,null,null,null,null,null,null,null,null,null,null,{"$f":"EffektiveND(Speicher[[#This Row],[DatumInbetriebnahme]],Speicher[[#This Row],[DatumAusserbetriebnahme]],Speicher[[#This Row],[GeplanteNutzungsdauer]], ND_default_storage)","v":3},{"$f":"KorrFaktBZ(Speicher[[#This Row],[DatumInbetriebnahme]]*1,Speicher[[#This Row],[DatumAusserbetriebnahme]]*1,Report_start*1,Report_end*1)","v":1}]
[null,null,null,null,null,null,null,null,null,null,null,null,null,null,null,null,null,null,null,null,null,null,{"$f":"EffektiveND(Speicher[[#This Row],[DatumInbetriebnahme]],Speicher[[#This Row],[DatumAusserbetriebnahme]],Speicher[[#This Row],[GeplanteNutzungsdauer]], ND_default_storage)","v":3},{"$f":"KorrFaktBZ(Speicher[[#This Row],[DatumInbetriebnahme]]*1,Speicher[[#This Row],[DatumAusserbetriebnahme]]*1,Report_start*1,Report_end*1)","v":1}]
[null,null,null,null,null,null,null,null,null,null,null,null,null,null,null,null,null,null,null,null,null,null,{"$f":"EffektiveND(Speicher[[#This Row],[DatumInbetriebnahme]],Speicher[[#This Row],[DatumAusserbetriebnahme]],Speicher[[#This Row],[GeplanteNutzungsdauer]], ND_default_storage)","v":3},{"$f":"KorrFaktBZ(Speicher[[#This Row],[DatumInbetriebnahme]]*1,Speicher[[#This Row],[DatumAusserbetriebnahme]]*1,Report_start*1,Report_end*1)","v":1}]
[null,null,null,null,null,null,null,null,null,null,null,null,null,null,null,null,null,null,null,null,null,null,{"$f":"EffektiveND(Speicher[[#This Row],[DatumInbetriebnahme]],Speicher[[#This Row],[DatumAusserbetriebnahme]],Speicher[[#This Row],[GeplanteNutzungsdauer]], ND_default_storage)","v":3},{"$f":"KorrFaktBZ(Speicher[[#This Row],[DatumInbetriebnahme]]*1,Speicher[[#This Row],[DatumAusserbetriebnahme]]*1,Report_start*1,Report_end*1)","v":1}]
[null,null,null,null,null,null,null,null,null,null,null,null,null,null,null,null,null,null,null,null,null,null,{"$f":"EffektiveND(Speicher[[#This Row],[DatumInbetriebnahme]],Speicher[[#This Row],[DatumAusserbetriebnahme]],Speicher[[#This Row],[GeplanteNutzungsdauer]], ND_default_storage)","v":3},{"$f":"KorrFaktBZ(Speicher[[#This Row],[DatumInbetriebnahme]]*1,Speicher[[#This Row],[DatumAusserbetriebnahme]]*1,Report_start*1,Report_end*1)","v":1}]
[null,null,null,null,null,null,null,null,null,null,null,null,null,null,null,null,null,null,null,null,null,null,{"$f":"EffektiveND(Speicher[[#This Row],[DatumInbetriebnahme]],Speicher[[#This Row],[DatumAusserbetriebnahme]],Speicher[[#This Row],[GeplanteNutzungsdauer]], ND_default_storage)","v":3},{"$f":"KorrFaktBZ(Speicher[[#This Row],[DatumInbetriebnahme]]*1,Speicher[[#This Row],[DatumAusserbetriebnahme]]*1,Report_start*1,Report_end*1)","v":1}]
[null,null,null,null,null,null,null,null,null,null,null,null,null,null,null,null,null,null,null,null,null,null,{"$f":"EffektiveND(Speicher[[#This Row],[DatumInbetriebnahme]],Speicher[[#This Row],[DatumAusserbetriebnahme]],Speicher[[#This Row],[GeplanteNutzungsdauer]], ND_default_storage)","v":3},{"$f":"KorrFaktBZ(Speicher[[#This Row],[DatumInbetriebnahme]]*1,Speicher[[#This Row],[DatumAusserbetriebnahme]]*1,Report_start*1,Report_end*1)","v":1}]
[null,null,null,null,null,null,null,null,null,null,null,null,null,null,null,null,null,null,null,null,null,null,{"$f":"EffektiveND(Speicher[[#This Row],[DatumInbetriebnahme]],Speicher[[#This Row],[DatumAusserbetriebnahme]],Speicher[[#This Row],[GeplanteNutzungsdauer]], ND_default_storage)","v":3},{"$f":"KorrFaktBZ(Speicher[[#This Row],[DatumInbetriebnahme]]*1,Speicher[[#This Row],[DatumAusserbetriebnahme]]*1,Report_start*1,Report_end*1)","v":1}]
[null,null,null,null,null,null,null,null,null,null,null,null,null,null,null,null,null,null,null,null,null,null,{"$f":"EffektiveND(Speicher[[#This Row],[DatumInbetriebnahme]],Speicher[[#This Row],[DatumAusserbetriebnahme]],Speicher[[#This Row],[GeplanteNutzungsdauer]], ND_default_storage)","v":3},{"$f":"KorrFaktBZ(Speicher[[#This Row],[DatumInbetriebnahme]]*1,Speicher[[#This Row],[DatumAusserbetriebnahme]]*1,Report_start*1,Report_end*1)","v":1}]
[null,null,null,null,null,null,null,null,null,null,null,null,null,null,null,null,null,null,null,null,null,null,{"$f":"EffektiveND(Speicher[[#This Row],[DatumInbetriebnahme]],Speicher[[#This Row],[DatumAusserbetriebnahme]],Speicher[[#This Row],[GeplanteNutzungsdauer]], ND_default_storage)","v":3},{"$f":"KorrFaktBZ(Speicher[[#This Row],[DatumInbetriebnahme]]*1,Speicher[[#This Row],[DatumAusserbetriebnahme]]*1,Report_start*1,Report_end*1)","v":1}]
[null,null,null,null,null,null,null,null,null,null,null,null,null,null,null,null,null,null,null,null,null,null,{"$f":"EffektiveND(Speicher[[#This Row],[DatumInbetriebnahme]],Speicher[[#This Row],[DatumAusserbetriebnahme]],Speicher[[#This Row],[GeplanteNutzungsdauer]], ND_default_storage)","v":3},{"$f":"KorrFaktBZ(Speicher[[#This Row],[DatumInbetriebnahme]]*1,Speicher[[#This Row],[DatumAusserbetriebnahme]]*1,Report_start*1,Report_end*1)","v":1}]
[null,null,null,null,null,null,null,null,null,null,null,null,null,null,null,null,null,null,null,null,null,null,{"$f":"EffektiveND(Speicher[[#This Row],[DatumInbetriebnahme]],Speicher[[#This Row],[DatumAusserbetriebnahme]],Speicher[[#This Row],[GeplanteNutzungsdauer]], ND_default_storage)","v":3},{"$f":"KorrFaktBZ(Speicher[[#This Row],[DatumInbetriebnahme]]*1,Speicher[[#This Row],[DatumAusserbetriebnahme]]*1,Report_start*1,Report_end*1)","v":1}]
[null,null,null,null,null,null,null,null,null,null,null,null,null,null,null,null,null,null,null,null,null,null,{"$f":"EffektiveND(Speicher[[#This Row],[DatumInbetriebnahme]],Speicher[[#This Row],[DatumAusserbetriebnahme]],Speicher[[#This Row],[GeplanteNutzungsdauer]], ND_default_storage)","v":3},{"$f":"KorrFaktBZ(Speicher[[#This Row],[DatumInbetriebnahme]]*1,Speicher[[#This Row],[DatumAusserbetriebnahme]]*1,Report_start*1,Report_end*1)","v":1}]
[null,null,null,null,null,null,null,null,null,null,null,null,null,null,null,null,null,null,null,null,null,null,{"$f":"EffektiveND(Speicher[[#This Row],[DatumInbetriebnahme]],Speicher[[#This Row],[DatumAusserbetriebnahme]],Speicher[[#This Row],[GeplanteNutzungsdauer]], ND_default_storage)","v":3},{"$f":"KorrFaktBZ(Speicher[[#This Row],[DatumInbetriebnahme]]*1,Speicher[[#This Row],[DatumAusserbetriebnahme]]*1,Report_start*1,Report_end*1)","v":1}]

{"sheet":"2c_Netzwerk-Geräte","index":6,"n_rows":34,"n_cols":22,"rows_kept":34,"cut":false,"hidden":false,"merged":[[1,1,1,7],[5,2,5,3],[6,2,6,3],[7,2,7,3]]}
[]
[null,"IT-Inventarliste - Anlage 2c (Netzwerk-Geräte) zur KPI4DCE-Berechnung"]
[null,"Dokumentation gemäß Anforderungen 3.1.2.1 und 3.2.2.1 der Vergabekriterien"]
[]
[null,"Allgemeine Angaben",null,null,null,null,"Obligatorische Angaben Antragstellung Blauer Engel"]
[null,"Rechenzentrum:",{"$f":"IF('Allgemeine Angaben'!C6<>\"\",'Allgemeine Angaben'!C6,\"\")","v":"Testrechenzentrum"},null,null,null,"Ergänzende Angaben KPI4DCE (über das [+] ausklappbar)"]
[null,"Bilanzdatum von:",{"$f":"IF(Report_start<>\"\",Report_start,\"\")","v":"2018-01-01"},null,null,null,"* Angaben für Herstellungsaufwand"]
[null,"Bilanzdatum bis:",{"$f":"IF(Report_end<>\"\",Report_end,\"\")","v":"2018-12-31"},null,null,null,"** Angaben für Zuordnung (Allokation)"]
[null,null,null,null,null,null,"*** Angaben für Nutzen"]
[null,null,null,null,null,null,"Automatisch berechnete Werte (keine Eingabe)"]
[null,"Hinweis: Alle Angaben werden pro Gerät gemacht, auch wenn dieses mehrfach vorkommt"]
[null,"*",null,"*","*",null,null,"**","*",null,null,"(***)","(***)",null,null,null,null,"***","**","**"]
[null,"Anzahl bauglei-\ncher Geräte","Eindeutige ID oder Komma-separierte ID-Liste","Datum der \nInbetriebnahme","Datum der \nAußerbetriebnahme","Hersteller","Modell","Nennleistung ohne Redundanz","Geplante Nutzungsdauer","Anschaffungskosten","Währung Anschaffungskosten","Anzahl Ports pro Gerät","Maximale Bandbreite pro Port","Netzwerkebene","Anzahl Netzteile","Gewicht","Mittlere genutzte Bandbreite interner Datenverkehr","Mittlere genutzte Bandbreite externer Datenverkehr","Mittlere Leistungsaufnahme","Energiebedarf pro Jahr","Effektive Nutzungsdauer","Korrekturfaktor Berichtszeitraum (für Jahres- und Leistungswerte)"]
[null,"[Stck]","[Text (,Text, Text, ...)]","[TT.MM.JJJJ]","[TT.MM.JJJJ]","[Text]","[Text]","[W/Stck]","[Jahre]","[Zahlenwert]","[z.B. EUR | USD]","[Anzahl/Stck]","[Mbit/s]","[intern, extern]","[Anzahl/Stck]","[kg/Stck]","[Mbit/s/Stck]","[Mbit/s/Stck]","[W/Stck]","[kWh/Stck]","[a]"]
[null,"AnzahlNetzwerk","UniqueID","DatumInbetriebnahme","DatumAusserbetriebnahme","Herstellername","Modellname","Nennleistung","GeplanteNutzungsdauer","AnschaffungskostenProStueck","WaehrungAnschaffungskosten","AnzahlPorts","MaximaleBandbreiteProPort","Netzwerkebene","AnzahlNetzteile","Gewicht","MittlereGenutzteBandbreiteInternerDatenverkehr","MittlereGenutzteBandbreiteExternerDatenverkehr","MittlereLeistungsaufnahme","EnergiebedarfProJahr","EffektiveND","KorrekturFaktorBZ"]
[null,20,null,null,null,null,null,100,7,null,null,48,1000,null,2,null,null,2400,114,{"$f":"Netzwerk[[#This Row],[MittlereLeistungsaufnahme]]*8.76","v":998.64},{"$f":"EffektiveND(Netzwerk[[#This Row],[DatumInbetriebnahme]],Netzwerk[[#This Row],[DatumAusserbetriebnahme]],Netzwerk[[#This Row],[GeplanteNutzungsdauer]], ND_default_switch)","v":7},{"$f":"KorrFaktBZ(Netzwerk[[#This Row],[DatumInbetriebnahme]]*1,Netzwerk[[#This Row],[DatumAusserbetriebnahme]]*1,Report_start*1,Report_end*1)","v":1}]
[null,null,null,null,null,null,null,null,null,null,null,null,null,null,null,null,null,null,null,null,{"$f":"EffektiveND(Netzwerk[[#This Row],[DatumInbetriebnahme]],Netzwerk[[#This Row],[DatumAusserbetriebnahme]],Netzwerk[[#This Row],[GeplanteNutzungsdauer]], ND_default_switch)","v":3},{"$f":"KorrFaktBZ(Netzwerk[[#This Row],[DatumInbetriebnahme]]*1,Netzwerk[[#This Row],[DatumAusserbetriebnahme]]*1,Report_start*1,Report_end*1)","v":1}]
[null,null,null,null,null,null,null,null,null,null,null,null,null,null,null,null,null,null,null,null,{"$f":"EffektiveND(Netzwerk[[#This Row],[DatumInbetriebnahme]],Netzwerk[[#This Row],[DatumAusserbetriebnahme]],Netzwerk[[#This Row],[GeplanteNutzungsdauer]], ND_default_switch)","v":3},{"$f":"KorrFaktBZ(Netzwerk[[#This Row],[DatumInbetriebnahme]]*1,Netzwerk[[#This Row],[DatumAusserbetriebnahme]]*1,Report_start*1,Report_end*1)","v":1}]
[null,null,null,null,null,null,null,null,null,null,null,null,null,null,null,null,null,null,null,null,{"$f":"EffektiveND(Netzwerk[[#This Row],[DatumInbetriebnahme]],Netzwerk[[#This Row],[DatumAusserbetriebnahme]],Netzwerk[[#This Row],[GeplanteNutzungsdauer]], ND_default_switch)","v":3},{"$f":"KorrFaktBZ(Netzwerk[[#This Row],[DatumInbetriebnahme]]*1,Netzwerk[[#This Row],[DatumAusserbetriebnahme]]*1,Report_start*1,Report_end*1)","v":1}]
[null,null,null,null,null,null,null,null,null,null,null,null,null,null,null,null,null,null,null,null,{"$f":"EffektiveND(Netzwerk[[#This Row],[DatumInbetriebnahme]],Netzwerk[[#This Row],[DatumAusserbetriebnahme]],Netzwerk[[#This Row],[GeplanteNutzungsdauer]], ND_default_switch)","v":3},{"$f":"KorrFaktBZ(Netzwerk[[#This Row],[DatumInbetriebnahme]]*1,Netzwerk[[#This Row],[DatumAusserbetriebnahme]]*1,Report_start*1,Report_end*1)","v":1}]
[null,null,null,null,null,null,null,null,null,null,null,null,null,null,null,null,null,null,null,null,{"$f":"EffektiveND(Netzwerk[[#This Row],[DatumInbetriebnahme]],Netzwerk[[#This Row],[DatumAusserbetriebnahme]],Netzwerk[[#This Row],[GeplanteNutzungsdauer]], ND_default_switch)","v":3},{"$f":"KorrFaktBZ(Netzwerk[[#This Row],[DatumInbetriebnahme]]*1,Netzwerk[[#This Row],[DatumAusserbetriebnahme]]*1,Report_start*1,Report_end*1)","v":1}]
[null,null,null,null,null,null,null,null,null,null,null,null,null,null,null,null,null,null,null,null,{"$f":"EffektiveND(Netzwerk[[#This Row],[DatumInbetriebnahme]],Netzwerk[[#This Row],[DatumAusserbetriebnahme]],Netzwerk[[#This Row],[GeplanteNutzungsdauer]], ND_default_switch)","v":3},{"$f":"KorrFaktBZ(Netzwerk[[#This Row],[DatumInbetriebnahme]]*1,Netzwerk[[#This Row],[DatumAusserbetriebnahme]]*1,Report_start*1,Report_end*1)","v":1}]
[null,null,null,null,null,null,null,null,null,null,null,null,null,null,null,null,null,null,null,null,{"$f":"EffektiveND(Netzwerk[[#This Row],[DatumInbetriebnahme]],Netzwerk[[#This Row],[DatumAusserbetriebnahme]],Netzwerk[[#This Row],[GeplanteNutzungsdauer]], ND_default_switch)","v":3},{"$f":"KorrFaktBZ(Netzwerk[[#This Row],[DatumInbetriebnahme]]*1,Netzwerk[[#This Row],[DatumAusserbetriebnahme]]*1,Report_start*1,Report_end*1)","v":1}]
[null,null,null,null,null,null,null,null,null,null,null,null,null,null,null,null,null,null,null,null,{"$f":"EffektiveND(Netzwerk[[#This Row],[DatumInbetriebnahme]],Netzwerk[[#This Row],[DatumAusserbetriebnahme]],Netzwerk[[#This Row],[GeplanteNutzungsdauer]], ND_default_switch)","v":3},{"$f":"KorrFaktBZ(Netzwerk[[#This Row],[DatumInbetriebnahme]]*1,Netzwerk[[#This Row],[DatumAusserbetriebnahme]]*1,Report_start*1,Report_end*1)","v":1}]
[null,null,null,null,null,null,null,null,null,null,null,null,null,null,null,null,null,null,null,null,{"$f":"EffektiveND(Netzwerk[[#This Row],[DatumInbetriebnahme]],Netzwerk[[#This Row],[DatumAusserbetriebnahme]],Netzwerk[[#This Row],[GeplanteNutzungsdauer]], ND_default_switch)","v":3},{"$f":"KorrFaktBZ(Netzwerk[[#This Row],[DatumInbetriebnahme]]*1,Netzwerk[[#This Row],[DatumAusserbetriebnahme]]*1,Report_start*1,Report_end*1)","v":1}]
[null,null,null,null,null,null,null,null,null,null,null,null,null,null,null,null,null,null,null,null,{"$f":"EffektiveND(Netzwerk[[#This Row],[DatumInbetriebnahme]],Netzwerk[[#This Row],[DatumAusserbetriebnahme]],Netzwerk[[#This Row],[GeplanteNutzungsdauer]], ND_default_switch)","v":3},{"$f":"KorrFaktBZ(Netzwerk[[#This Row],[DatumInbetriebnahme]]*1,Netzwerk[[#This Row],[DatumAusserbetriebnahme]]*1,Report_start*1,Report_end*1)","v":1}]
[null,null,null,null,null,null,null,null,null,null,null,null,null,null,null,null,null,null,null,null,{"$f":"EffektiveND(Netzwerk[[#This Row],[DatumInbetriebnahme]],Netzwerk[[#This Row],[DatumAusserbetriebnahme]],Netzwerk[[#This Row],[GeplanteNutzungsdauer]], ND_default_switch)","v":3},{"$f":"KorrFaktBZ(Netzwerk[[#This Row],[DatumInbetriebnahme]]*1,Netzwerk[[#This Row],[DatumAusserbetriebnahme]]*1,Report_start*1,Report_end*1)","v":1}]
[null,null,null,null,null,null,null,null,null,null,null,null,null,null,null,null,null,null,null,null,{"$f":"EffektiveND(Netzwerk[[#This Row],[DatumInbetriebnahme]],Netzwerk[[#This Row],[DatumAusserbetriebnahme]],Netzwerk[[#This Row],[GeplanteNutzungsdauer]], ND_default_switch)","v":3},{"$f":"KorrFaktBZ(Netzwerk[[#This Row],[DatumInbetriebnahme]]*1,Netzwerk[[#This Row],[DatumAusserbetriebnahme]]*1,Report_start*1,Report_end*1)","v":1}]
[null,null,null,null,null,null,null,null,null,null,null,null,null,null,null,null,null,null,null,null,{"$f":"EffektiveND(Netzwerk[[#This Row],[DatumInbetriebnahme]],Netzwerk[[#This Row],[DatumAusserbetriebnahme]],Netzwerk[[#This Row],[GeplanteNutzungsdauer]], ND_default_switch)","v":3},{"$f":"KorrFaktBZ(Netzwerk[[#This Row],[DatumInbetriebnahme]]*1,Netzwerk[[#This Row],[DatumAusserbetriebnahme]]*1,Report_start*1,Report_end*1)","v":1}]
[null,null,null,null,null,null,null,null,null,null,null,null,null,null,null,null,null,null,null,null,{"$f":"EffektiveND(Netzwerk[[#This Row],[DatumInbetriebnahme]],Netzwerk[[#This Row],[DatumAusserbetriebnahme]],Netzwerk[[#This Row],[GeplanteNutzungsdauer]], ND_default_switch)","v":3},{"$f":"KorrFaktBZ(Netzwerk[[#This Row],[DatumInbetriebnahme]]*1,Netzwerk[[#This Row],[DatumAusserbetriebnahme]]*1,Report_start*1,Report_end*1)","v":1}]
[null,null,null,null,null,null,null,null,null,null,null,null,null,null,null,null,null,null,null,null,{"$f":"EffektiveND(Netzwerk[[#This Row],[DatumInbetriebnahme]],Netzwerk[[#This Row],[DatumAusserbetriebnahme]],Netzwerk[[#This Row],[GeplanteNutzungsdauer]], ND_default_switch)","v":3},{"$f":"KorrFaktBZ(Netzwerk[[#This Row],[DatumInbetriebnahme]]*1,Netzwerk[[#This Row],[DatumAusserbetriebnahme]]*1,Report_start*1,Report_end*1)","v":1}]
[null,null,null,null,null,null,null,null,null,null,null,null,null,null,null,null,null,null,null,null,{"$f":"EffektiveND(Netzwerk[[#This Row],[DatumInbetriebnahme]],Netzwerk[[#This Row],[DatumAusserbetriebnahme]],Netzwerk[[#This Row],[GeplanteNutzungsdauer]], ND_default_switch)","v":3},{"$f":"KorrFaktBZ(Netzwerk[[#This Row],[DatumInbetriebnahme]]*1,Netzwerk[[#This Row],[DatumAusserbetriebnahme]]*1,Report_start*1,Report_end*1)","v":1}]
[null,null,null,null,null,null,null,null,null,null,null,null,null,null,null,null,null,null,null,null,{"$f":"EffektiveND(Netzwerk[[#This Row],[DatumInbetriebnahme]],Netzwerk[[#This Row],[DatumAusserbetriebnahme]],Netzwerk[[#This Row],[GeplanteNutzungsdauer]], ND_default_switch)","v":3},{"$f":"KorrFaktBZ(Netzwerk[[#This Row],[DatumInbetriebnahme]]*1,Netzwerk[[#This Row],[DatumAusserbetriebnahme]]*1,Report_start*1,Report_end*1)","v":1}]
[null,null,null,null,null,null,null,null,null,null,null,null,null,null,null,null,null,null,null,null,{"$f":"EffektiveND(Netzwerk[[#This Row],[DatumInbetriebnahme]],Netzwerk[[#This Row],[DatumAusserbetriebnahme]],Netzwerk[[#This Row],[GeplanteNutzungsdauer]], ND_default_switch)","v":3},{"$f":"KorrFaktBZ(Netzwerk[[#This Row],[DatumInbetriebnahme]]*1,Netzwerk[[#This Row],[DatumAusserbetriebnahme]]*1,Report_start*1,Report_end*1)","v":1}]

{"sheet":"2d_PDU","index":7,"n_rows":16,"n_cols":9,"rows_kept":16,"cut":false,"hidden":false,"merged":[[1,1,1,7],[7,2,7,4],[5,2,5,4],[6,2,6,4],[5,7,6,7],[7,7,8,7]]}
[]
[null,"IT-Inventarliste - Anlage 2d (Neuanschaffung intelligenter PDUs) zur KPI4DCE-Berechnung"]
[null,"Dokumentation gemäß Anforderungen 3.2.2.1 und 3.2.2.5 der Vergabekriterien"]
[]
[null,"Allgemeine Angaben",null,null,null,null,null,"Legende"]
[null,"Rechenzentrum:",{"$f":"IF('Allgemeine Angaben'!C6<>\"\",'Allgemeine Angaben'!C6,\"\")","v":"Testrechenzentrum"},null,null,null,null,"Obligatorische Angaben Abschlussevaluation"]
[null,"Bilanzdatum von:",{"$f":"IF(Report_start<>\"\",Report_start,\"\")","v":"2018-01-01"}]
[null,"Bilanzdatum bis:",{"$f":"IF(Report_end<>\"\",Report_end,\"\")","v":"2018-12-31"}]
[]
[]
[null,"Hinweis: Alle Angaben werden pro Gerät gemacht, auch wenn dieses mehrfach vorkommt"]
[]
[null,"Anzahl bauglei-\ncher Geräte","Eindeutige ID oder Komma-separierte ID-Liste","Datum der \nInbetriebnahme","Datum der \nAußerbetriebnahme","Hersteller","Modell","Anzahl \nStromausgänge","Verlustleistung"]
[null,"[Stck]","[Text (,Text, Text, ...)]","[TT.MM.JJJ]","[TT.MM.JJJ]","[Text]","[Text]","[Anzahl/Stck]","[W/Stck]"]
[null,"Anzahl","UniqueID","DatumInbetriebnahme","DatumAusserbetriebnahme","Herstellername","Modellname","AnzahlStromausgaenge","VerlustleistungGesamt"]
[null,30,null,"2017-01-01","2018-12-31","Elektrofritz","Superverteiler X1"]

{"sheet":"2e_Energie_Monitoring","index":8,"n_rows":27,"n_cols":26,"rows_kept":27,"cut":false,"hidden":false,"merged":[[5,2,5,4],[6,2,6,4],[7,2,7,4]]}
[]
[null,"Monitoring Energie - Anlage 2e zur KPI4DCE-Berechnung"]
[null,"Dokumentation gemäß Anforderungen 3.1.1.1, 3.1.1.2 und 3.2.1.1 der Vergabekriterien"]
[]
[null,"Allgemeine Angaben",null,null,null,null,null,"Obligatorische Angaben Antragstellung Blauer Engel"]
[null,"Rechenzentrum:",{"$f":"IF('Allgemeine Angaben'!C6<>\"\",'Allgemeine Angaben'!C6,\"\")","v":"Testrechenzentrum"},null,null,null,null,"Ergänzende Angaben KPI4DCE (über das [+] ausklappbar)"]
[null,"Bilanzdatum von:",{"$f":"IF(Report_start<>\"\",Report_start,\"\")","v":"2018-01-01"},null,null,null,null,"* Angaben für Aufwand Nutzungsphase"]
[null,"Bilanzdatum bis:",{"$f":"IF(Report_end<>\"\",Report_end,\"\")","v":"2018-12-31"},null,null,null,null,"** Angaben für Zuordnung (Allokation)",null,null,null,null,null,null,null,"° Die Kältearbeit ist die abgeführte Wärmemenge Qth,RZ im Betrachtungszeitraum. Sie geht in die Berechnung des JAZ ein."]
[null,null,null,null,null,null,null,"*** Angaben für Nutzen",null,null,null,null,null,null,null,"°° Die thermische Kühllast berechnet sich vereinfacht durch die Summe der elektrischen Anschlussleistungen im zu kühlenden Raum."]
[null,null,null,null,null,null,null,"Automatisch berechnete Werte (keine Eingabe)"]
[null,"*","*","*",null,"**",null,"**",null,"**",null,null,null,null,null,null,null,null,null,null,null,"*","*","**"]
[null,"Beginn Monitoring-zeitraum","Ende Monitoring-zeitraum","Strombedarf RZ gesamt","Spitzenlast RZ gesamt","Strombedarf Server","Spitzenlast Server","Strombedarf Storage","Spitzenlast Storage","Strombedarf Netzwerk","Spitzenlast Netzwerk","Strombedarf IT","Spitzenlast IT","Strombedarf Kühlsystem","Spitzenlast Kühlsystem (elektrisch)","Kältearbeit Kühlsystem (thermisch)","Kühllast Kühlsystem (thermisch)","Strombedarf USV (Verluste)","Spitzenlast USV","Strombedarf Verluste PDU","Strombedarf Sonstiges","Brennstoffbedarf","Brennstoffart","PUE","JAZ","Anteil Monitoring- zeitraum im Berichtszeitraum"]
[null,null,null,"MPEVU + MPEE","MPEVU + MPEE","MPIT2_SV","MPIT2_SV","MPIT2_St","MPIT2_St","MPIT2_NW","MPIT2_NW","MPIT2","MPIT2","MPKS","MPKS","(siehe °)","(siehe °°)","MPUSV - MPIT1","MPUSV","MPIT1 - MPIT2","MPSo "]
[null,"[TT.MM.JJJ]","[TT.MM.JJJ]","[kWhel]","[kWel]","[kWhel]","[kWel]","[kWhel]","[kWel]","[kWhel]","[kWel]","[kWhel]","[kWel]","[kWhel]","[kWel]","[kWhth]","[kWth]","[kWhel]","[kWel]","[kWhel]","[kWhel]","[kWh]","[Heizoel | Erdgas | Fluessiggas | Holz-Pellets | Holz-Hackschnitzel-Wald | Holz-Hackschnitzel-KUP]","[kWh/kWh]","[kWhth/kWhel]","[-]"]
[null,"MonitoringStart","MonitoringEnde","StrombedarfRZgesamt","SpitzenlastRZgesamt","StrombedarfServer","SpitzenlastServer","StrombedarfStorage","SpitzenlastStorage","StrombedarfNetzwerk","SpitzenlastNetzwerk","StrombedarfIT","SpitzenlastIT","StrombedarfKS","SpitzenlastKSel","KaeltearbeitKSth","KuehllastKSth","StrombedarfVerlusteUSV","SpitzenlastUSV","StrombedarfVerlustePDU","StrombedarfSonstiges","Brennstoffbedarf","Brennstoffart","PUE","JAZ","RatioMZzuBZ"]
[null,"2018-01-31","2018-12-31",520560,null,157680,null,190800,null,52560,null,401040,null,119520,null,401040,null,null,null,null,null,null,null,{"$f":"IF(EnergieMonitoring[[#This Row],[StrombedarfIT]]>0,EnergieMonitoring[[#This Row],[StrombedarfRZgesamt]]/EnergieMonitoring[[#This Row],[StrombedarfIT]],\"\")","v":1.2980251346499103},{"$f":"IF(EnergieMonitoring[[#This Row],[StrombedarfKS]]>0,EnergieMonitoring[[#This Row],[KaeltearbeitKSth]]/EnergieMonitoring[[#This Row],[StrombedarfKS]],\"\")","v":3.3554216867469879},{"$f":"KorrFaktBZ(Report_start*1,Report_end*1,EnergieMonitoring[[#This Row],[MonitoringStart]]*1,EnergieMonitoring[[#This Row],[MonitoringEnde]]*1)","v":1}]
[null,null,null,null,null,null,null,null,null,null,null,null,null,null,null,null,null,null,null,null,null,null,null,{"$f":"IF(EnergieMonitoring[[#This Row],[StrombedarfIT]]>0,EnergieMonitoring[[#This Row],[StrombedarfRZgesamt]]/EnergieMonitoring[[#This Row],[StrombedarfIT]],\"\")","v":""},{"$f":"IF(EnergieMonitoring[[#This Row],[StrombedarfKS]]>0,EnergieMonitoring[[#This Row],[KaeltearbeitKSth]]/EnergieMonitoring[[#This Row],[StrombedarfKS]],\"\")","v":""},{"$f":"KorrFaktBZ(Report_start*1,Report_end*1,EnergieMonitoring[[#This Row],[MonitoringStart]]*1,EnergieMonitoring[[#This Row],[MonitoringEnde]]*1)","v":0}]
[null,null,null,null,null,null,null,null,null,null,null,null,null,null,null,null,null,null,null,null,null,null,null,{"$f":"IF(EnergieMonitoring[[#This Row],[StrombedarfIT]]>0,EnergieMonitoring[[#This Row],[StrombedarfRZgesamt]]/EnergieMonitoring[[#This Row],[StrombedarfIT]],\"\")","v":""},{"$f":"IF(EnergieMonitoring[[#This Row],[StrombedarfKS]]>0,EnergieMonitoring[[#This Row],[KaeltearbeitKSth]]/EnergieMonitoring[[#This Row],[StrombedarfKS]],\"\")","v":""},{"$f":"KorrFaktBZ(Report_start*1,Report_end*1,EnergieMonitoring[[#This Row],[MonitoringStart]]*1,EnergieMonitoring[[#This Row],[MonitoringEnde]]*1)","v":0}]
[null,null,null,null,null,null,null,null,null,null,null,null,null,null,null,null,null,null,null,null,null,null,null,{"$f":"IF(EnergieMonitoring[[#This Row],[StrombedarfIT]]>0,EnergieMonitoring[[#This Row],[StrombedarfRZgesamt]]/EnergieMonitoring[[#This Row],[StrombedarfIT]],\"\")","v":""},{"$f":"IF(EnergieMonitoring[[#This Row],[StrombedarfKS]]>0,EnergieMonitoring[[#This Row],[KaeltearbeitKSth]]/EnergieMonitoring[[#This Row],[StrombedarfKS]],\"\")","v":""},{"$f":"KorrFaktBZ(Report_start*1,Report_end*1,EnergieMonitoring[[#This Row],[MonitoringStart]]*1,EnergieMonitoring[[#This Row],[MonitoringEnde]]*1)","v":0}]
[null,null,null,null,null,null,null,null,null,null,null,null,null,null,null,null,null,null,null,null,null,null,null,{"$f":"IF(EnergieMonitoring[[#This Row],[StrombedarfIT]]>0,EnergieMonitoring[[#This Row],[StrombedarfRZgesamt]]/EnergieMonitoring[[#This Row],[StrombedarfIT]],\"\")","v":""},{"$f":"IF(EnergieMonitoring[[#This Row],[StrombedarfKS]]>0,EnergieMonitoring[[#This Row],[KaeltearbeitKSth]]/EnergieMonitoring[[#This Row],[StrombedarfKS]],\"\")","v":""},{"$f":"KorrFaktBZ(Report_start*1,Report_end*1,EnergieMonitoring[[#This Row],[MonitoringStart]]*1,EnergieMonitoring[[#This Row],[MonitoringEnde]]*1)","v":0}]
[null,null,null,null,null,null,null,null,null,null,null,null,null,null,null,null,null,null,null,null,null,null,null,{"$f":"IF(EnergieMonitoring[[#This Row],[StrombedarfIT]]>0,EnergieMonitoring[[#This Row],[StrombedarfRZgesamt]]/EnergieMonitoring[[#This Row],[StrombedarfIT]],\"\")","v":""},{"$f":"IF(EnergieMonitoring[[#This Row],[StrombedarfKS]]>0,EnergieMonitoring[[#This Row],[KaeltearbeitKSth]]/EnergieMonitoring[[#This Row],[StrombedarfKS]],\"\")","v":""},{"$f":"KorrFaktBZ(Report_start*1,Report_end*1,EnergieMonitoring[[#This Row],[MonitoringStart]]*1,EnergieMonitoring[[#This Row],[MonitoringEnde]]*1)","v":0}]
[null,null,null,null,null,null,null,null,null,null,null,null,null,null,null,null,null,null,null,null,null,null,null,{"$f":"IF(EnergieMonitoring[[#This Row],[StrombedarfIT]]>0,EnergieMonitoring[[#This Row],[StrombedarfRZgesamt]]/EnergieMonitoring[[#This Row],[StrombedarfIT]],\"\")","v":""},{"$f":"IF(EnergieMonitoring[[#This Row],[StrombedarfKS]]>0,EnergieMonitoring[[#This Row],[KaeltearbeitKSth]]/EnergieMonitoring[[#This Row],[StrombedarfKS]],\"\")","v":""},{"$f":"KorrFaktBZ(Report_start*1,Report_end*1,EnergieMonitoring[[#This Row],[MonitoringStart]]*1,EnergieMonitoring[[#This Row],[MonitoringEnde]]*1)","v":0}]
[null,null,null,null,null,null,null,null,null,null,null,null,null,null,null,null,null,null,null,null,null,null,null,{"$f":"IF(EnergieMonitoring[[#This Row],[StrombedarfIT]]>0,EnergieMonitoring[[#This Row],[StrombedarfRZgesamt]]/EnergieMonitoring[[#This Row],[StrombedarfIT]],\"\")","v":""},{"$f":"IF(EnergieMonitoring[[#This Row],[StrombedarfKS]]>0,EnergieMonitoring[[#This Row],[KaeltearbeitKSth]]/EnergieMonitoring[[#This Row],[StrombedarfKS]],\"\")","v":""},{"$f":"KorrFaktBZ(Report_start*1,Report_end*1,EnergieMonitoring[[#This Row],[MonitoringStart]]*1,EnergieMonitoring[[#This Row],[MonitoringEnde]]*1)","v":0}]
[null,null,null,null,null,null,null,null,null,null,null,null,null,null,null,null,null,null,null,null,null,null,null,{"$f":"IF(EnergieMonitoring[[#This Row],[StrombedarfIT]]>0,EnergieMonitoring[[#This Row],[StrombedarfRZgesamt]]/EnergieMonitoring[[#This Row],[StrombedarfIT]],\"\")","v":""},{"$f":"IF(EnergieMonitoring[[#This Row],[StrombedarfKS]]>0,EnergieMonitoring[[#This Row],[KaeltearbeitKSth]]/EnergieMonitoring[[#This Row],[StrombedarfKS]],\"\")","v":""},{"$f":"KorrFaktBZ(Report_start*1,Report_end*1,EnergieMonitoring[[#This Row],[MonitoringStart]]*1,EnergieMonitoring[[#This Row],[MonitoringEnde]]*1)","v":0}]
[null,null,null,null,null,null,null,null,null,null,null,null,null,null,null,null,null,null,null,null,null,null,null,{"$f":"IF(EnergieMonitoring[[#This Row],[StrombedarfIT]]>0,EnergieMonitoring[[#This Row],[StrombedarfRZgesamt]]/EnergieMonitoring[[#This Row],[StrombedarfIT]],\"\")","v":""},{"$f":"IF(EnergieMonitoring[[#This Row],[StrombedarfKS]]>0,EnergieMonitoring[[#This Row],[KaeltearbeitKSth]]/EnergieMonitoring[[#This Row],[StrombedarfKS]],\"\")","v":""},{"$f":"KorrFaktBZ(Report_start*1,Report_end*1,EnergieMonitoring[[#This Row],[MonitoringStart]]*1,EnergieMonitoring[[#This Row],[MonitoringEnde]]*1)","v":0}]
[null,null,null,null,null,null,null,null,null,null,null,null,null,null,null,null,null,null,null,null,null,null,null,{"$f":"IF(EnergieMonitoring[[#This Row],[StrombedarfIT]]>0,EnergieMonitoring[[#This Row],[StrombedarfRZgesamt]]/EnergieMonitoring[[#This Row],[StrombedarfIT]],\"\")","v":""},{"$f":"IF(EnergieMonitoring[[#This Row],[StrombedarfKS]]>0,EnergieMonitoring[[#This Row],[KaeltearbeitKSth]]/EnergieMonitoring[[#This Row],[StrombedarfKS]],\"\")","v":""},{"$f":"KorrFaktBZ(Report_start*1,Report_end*1,EnergieMonitoring[[#This Row],[MonitoringStart]]*1,EnergieMonitoring[[#This Row],[MonitoringEnde]]*1)","v":0}]
[null,null,null,null,null,null,null,null,null,null,null,null,null,null,null,null,null,null,null,null,null,null,null,{"$f":"IF(EnergieMonitoring[[#This Row],[StrombedarfIT]]>0,EnergieMonitoring[[#This Row],[StrombedarfRZgesamt]]/EnergieMonitoring[[#This Row],[StrombedarfIT]],\"\")","v":""},{"$f":"IF(EnergieMonitoring[[#This Row],[StrombedarfKS]]>0,EnergieMonitoring[[#This Row],[KaeltearbeitKSth]]/EnergieMonitoring[[#This Row],[StrombedarfKS]],\"\")","v":""},{"$f":"KorrFaktBZ(Report_start*1,Report_end*1,EnergieMonitoring[[#This Row],[MonitoringStart]]*1,EnergieMonitoring[[#This Row],[MonitoringEnde]]*1)","v":0}]

{"sheet":"2f_IT_Monitoring","index":9,"n_rows":28,"n_cols":8,"rows_kept":28,"cut":false,"hidden":false,"merged":[[5,2,5,4],[6,2,6,4],[7,2,7,4]]}
[]
[null,"Monitoring IT-Last - Anlage 2f zur KPI4DCE-Berechnung"]
[null,"Dokumentation gemäß Anforderungen 3.1.2.2 und 3.2.2.2 der Vergabekriterien"]
[]
[null,"Allgemeine Angaben",null,null,null,null,null,"Obligatorische Angaben Antragstellung Blauer Engel"]
[null,"Rechenzentrum:",{"$f":"IF('Allgemeine Angaben'!C6<>\"\",'Allgemeine Angaben'!C6,\"\")","v":"Testrechenzentrum"},null,null,null,null,"Ergänzende Angaben KPI4DCE"]
[null,"Bilanzdatum von:",{"$f":"IF(Report_start<>\"\",Report_start,\"\")","v":"2018-01-01"},null,null,null,null,"* Angaben für Aufwand Nutzungsphase"]
[null,"Bilanzdatum bis:",{"$f":"IF(Report_end<>\"\",Report_end,\"\")","v":"2018-12-31"},null,null,null,null,"** Angaben für Zuordnung (Allokation)"]
[null,null,null,null,null,null,null,"*** Angaben für Nutzen"]
[null,null,null,null,null,null,null,"Automatisch berechnete Werte (keine Eingabe)"]
[]
[]
[null,"Beginn Monitoring-zeitraum","Ende Monitoring-zeitraum","Mittlere CPU-Auslastung (ITEUsv)","Mittlere Storage-Auslastung","Datenübertragung extern","Anteil Monitoring- zeitraum im Berichtszeitraum"]
[null,"[TT.MM.JJJ]","[TT.MM.JJJ]","{0...100} [%]","{0...100} [%]","[Gbit]","[-]"]
[null,"MonitoringStart","MonitoringEnde","MittelwertITEUsv","MittlereAuslastungStorage","ExterneDatenuebertragung","RatioMZzuBZ"]
[null,"2018-01-31","2018-12-31",11,87,{"$f":"0.1*8760*60*60","v":3153600},{"$f":"KorrFaktBZ(Report_start*1,Report_end*1,ITMonitoring[[#This Row],[MonitoringStart]]*1,ITMonitoring[[#This Row],[MonitoringEnde]]*1)","v":1}]
[null,null,null,null,null,null,{"$f":"KorrFaktBZ(Report_start*1,Report_end*1,ITMonitoring[[#This Row],[MonitoringStart]]*1,ITMonitoring[[#This Row],[MonitoringEnde]]*1)","v":0}]
[null,null,null,null,null,null,{"$f":"KorrFaktBZ(Report_start*1,Report_end*1,ITMonitoring[[#This Row],[MonitoringStart]]*1,ITMonitoring[[#This Row],[MonitoringEnde]]*1)","v":0}]
[null,null,null,null,null,null,{"$f":"KorrFaktBZ(Report_start*1,Report_end*1,ITMonitoring[[#This Row],[MonitoringStart]]*1,ITMonitoring[[#This Row],[MonitoringEnde]]*1)","v":0}]
[null,null,null,null,null,null,{"$f":"KorrFaktBZ(Report_start*1,Report_end*1,ITMonitoring[[#This Row],[MonitoringStart]]*1,ITMonitoring[[#This Row],[MonitoringEnde]]*1)","v":0}]
[null,null,null,null,null,null,{"$f":"KorrFaktBZ(Report_start*1,Report_end*1,ITMonitoring[[#This Row],[MonitoringStart]]*1,ITMonitoring[[#This Row],[MonitoringEnde]]*1)","v":0}]
[null,null,null,null,null,null,{"$f":"KorrFaktBZ(Report_start*1,Report_end*1,ITMonitoring[[#This Row],[MonitoringStart]]*1,ITMonitoring[[#This Row],[MonitoringEnde]]*1)","v":0}]
[null,null,null,null,null,null,{"$f":"KorrFaktBZ(Report_start*1,Report_end*1,ITMonitoring[[#This Row],[MonitoringStart]]*1,ITMonitoring[[#This Row],[MonitoringEnde]]*1)","v":0}]
[null,null,null,null,null,null,{"$f":"KorrFaktBZ(Report_start*1,Report_end*1,ITMonitoring[[#This Row],[MonitoringStart]]*1,ITMonitoring[[#This Row],[MonitoringEnde]]*1)","v":0}]
[null,null,null,null,null,null,{"$f":"KorrFaktBZ(Report_start*1,Report_end*1,ITMonitoring[[#This Row],[MonitoringStart]]*1,ITMonitoring[[#This Row],[MonitoringEnde]]*1)","v":0}]
[null,null,null,null,null,null,{"$f":"KorrFaktBZ(Report_start*1,Report_end*1,ITMonitoring[[#This Row],[MonitoringStart]]*1,ITMonitoring[[#This Row],[MonitoringEnde]]*1)","v":0}]
[null,null,null,null,null,null,{"$f":"KorrFaktBZ(Report_start*1,Report_end*1,ITMonitoring[[#This Row],[MonitoringStart]]*1,ITMonitoring[[#This Row],[MonitoringEnde]]*1)","v":0}]
[null,null,null,null,null,null,{"$f":"KorrFaktBZ(Report_start*1,Report_end*1,ITMonitoring[[#This Row],[MonitoringStart]]*1,ITMonitoring[[#This Row],[MonitoringEnde]]*1)","v":0}]

{"sheet":"2g_Kälteanlagen","index":10,"n_rows":16,"n_cols":19,"rows_kept":16,"cut":false,"hidden":false,"merged":[[5,2,5,4],[6,2,6,4],[7,2,7,4]]}
[]
[null,"IT-Inventarliste  - Anlage 2g (Kälteanlagen) zur KPI4DCE-Berechnung"]
[null,"Dokumentation gemäß Anforderungen 3.1.2.1 und 3.2.2.1 der Vergabekriterien"]
[]
[null,"Allgemeine Angaben",null,null,null,null,null,"Obligatorische Angaben Antragstellung Blauer Engel"]
[null,"Rechenzentrum:",{"$f":"IF('Allgemeine Angaben'!C6<>\"\",'Allgemeine Angaben'!C6,\"\")","v":"Testrechenzentrum"},null,null,null,null,"Ergänzende Angaben KPI4DCE"]
[null,"Bilanzdatum von:",{"$f":"IF(Report_start<>\"\",Report_start,\"\")","v":"2018-01-01"},null,null,null,null,"* Angaben für Aufwand Nutzungsphase"]
[null,"Bilanzdatum bis:",{"$f":"IF(Report_end<>\"\",Report_end,\"\")","v":"2018-12-31"},null,null,null,null,"** Angaben für Zuordnung (Allokation)"]
[null,null,null,null,null,null,null,"*** Angaben für Nutzen"]
[]
[null,"Hinweis: Alle Angaben werden pro Gerät gemacht, auch wenn dieses mehrfach vorkommt"]
[null,"*",null,"*","*",null,null,null,null,null,null,"*","*","*","*","*","*"]
[null,"Anzahl bauglei-\ncher Geräte","Eindeutige ID oder Komma-separierte ID-Liste","Datum der \nInbetriebnahme","Datum der \nAußerbetriebnahme","Hersteller","Modell","Nennleistung elektrisch","Nennleistung Kälte","Anschaffungskosten ","Währung Anschaffungskosten","Art des Kaeltemittels (korrekte Bezeichnunhg verwenden!)","Kaeltemittel Füllmenge","Verdampfungsart","Leckagerate pro Jahr","Nachfüllmenge Kältemittel pro Jahr (alternativ zu Leckagerate, höhere Priorität)","Wasserverbrauch pro Jahr","Wasserqualität","Energiebedarf pro Jahr"]
[null,"[Stck]","[Text (,Text, Text, ...)]","[TT.MM.JJJJ]","[TT.MM.JJJJ]","[Text]","[Text]","[kW_el]","[kW_th]","[Zahlenwert]","[z.B. EUR | USD]","[R134A | R290  | R32 | R404A | R407A | R407C | R410A | R717  | R718  | R744]","[kg/Stck]","[Direktverdampfer | Fluessigkeitskuehler]","[-]","[kg/Stck]","[m3/Stck]","[Trinkwasser | ...]","[kWh/Stck]"]
[null,"Anzahl","UniqueID","DatumInbetriebnahme","DatumAusserbetriebnahme","Herstellername","Modellname","NennleistungElektrisch","NennleistungKaelte","AnschaffungskostenProStueck","WaehrungAnschaffungskosten","KaeltemittelArt","KaeltemittelFuellmenge","Verdampfungsart","LeckagerateProJahr","KaeltemittelNachfuellmengeProJahr","WasserverbrauchProJahr","Wasserqualitaet","EnergiebedarfProJahr"]
[null,2,null,"2015-06-15","2018-12-31","Frostiko","Kühl1",2000,null,null,null,"R134A",100,null,null,2,2]

{"sheet":"Faktoren","index":11,"n_rows":154,"n_cols":7,"rows_kept":154,"cut":false,"hidden":true,"merged":[[88,3,97,3],[106,3,123,3],[130,3,131,3],[52,3,54,3],[55,3,57,3],[58,3,60,3],[61,3,63,3],[64,3,73,3],[76,3,85,3],[100,3,102,3],[49,3,51,3],[1,3,9,3],[10,3,12,3],[13,3,24,3],[25,3,33,3],[34,3,36,3],[40,3,42,3],[43,3,45,3],[46,3,48,3]]}
["Faktoren","Wert","Unit","Berechnung im VBA-Makro","Beispielrechnungen"]
["ADP_CPU_DieSize",5.8654700000000004E-7,"kg Sb eq. /(cm² CPU Die-Fläche / Stück CPU)","GWP_CPUs = AnzahlCPU * ((AnzahlKerneProCPU * DieSizeFaktor + DieSizeKonstante) * GWP_CPU_DieSize + GWP_CPU_Gold + GWP_CPU_T)","CPUs"]
["ADP_CPU_Gold",1.9933849053052E-2,"kg Sb eq./ Stück CPU",null,"AnzahlCPU",1]
["ADP_CPU_T",4.3274766091849077E-8,"kg Sb eq./ Stück CPU",null,"AnzahlKerneProCPU",4]
["GWP_CPU_DieSize",1.9739800000000001,"kg CO2 eq. /(cm² CPU Die-Fläche / Stück CPU)",null,"GWP_CPUs",{"$f":"$F$3 * (($F$4 * DieSizeFaktor + DieSizeKonstante) * GWP_CPU_DieSize + GWP_CPU_Gold + GWP_CPU_T)","v":8.9290985442244857},"kg CO2 eq."]
["GWP_CPU_Gold",5.6723378427849367,"kg CO2 eq./ Stück CPU",null,"ADP_CPUs",{"$f":"$F$3 * (($F$4 * DieSizeFaktor + DieSizeKonstante) * ADP_CPU_DieSize + ADP_CPU_Gold + ADP_CPU_T)","v":1.9934757443584805E-2},"kg Sb eq."]
["GWP_CPU_T",0.34527838003954808,"kg CO2 eq./ Stück CPU",null,"KEA_CPUs",{"$f":"$F$3 * (($F$4 * DieSizeFaktor + DieSizeKonstante) * KEA_CPU_DieSize + KEA_CPU_Gold + KEA_CPU_T)","v":132.25612431289917},"MJ"]
["KEA_CPU_DieSize",26.54571,"MJ /(cm² CPU Die-Fläche / Stück CPU)"]
["KEA_CPU_Gold",87.771502920061991,"MJ/ Stück CPU"]
["KEA_CPU_T",5.3315573425371765,"MJ/ Stück CPU",null,"Kühlkörper"]
["ADP_KK",5.1000000000000004E-4,"kg Sb eq./ Stück CPU","GWP_KKs = AnzahlCPU * GWP_KK","GWP_KKs",{"$f":" $F$3 * GWP_KK","v":3.1246},"kg CO2 eq."]
["GWP_KK",3.1246,"kg CO2 eq./ Stück CPU",null,"ADP_KKs",{"$f":" $F$3 * ADP_KK","v":5.1000000000000004E-4},"kg Sb eq."]
["KEA_KK",63.264600000000002,"MJ/ Stück CPU",null,"KEA_KKs",{"$f":" $F$3 * KEA_KK","v":63.264600000000002},"MJ"]
["ADP_RAM_DieSize",6.3049100000000006E-5,"kg Sb eq. / (cm² Die-Fläche / RAM-Riegel)","GWP_RAMs = AnzahlRAMModule * (GByteRAM / RAMproDie * GWP_RAM_DieSize + GWP_RAM_Gold + GWP_RAM_PCB + GWP_RAM_T)"]
["ADP_RAM_PCB",6.2324214639999996E-5,"kg Sb eq./ RAM-Riegel",null,"RAM"]
["ADP_RAM_Gold",1.6312396062775679E-3,"kg Sb eq./ RAM-Riegel",null,"AnzahlRAMModule",8]
["ADP_RAM_T",3.7456240868963182E-7,"kg Sb eq./ RAM-Riegel",null,"GByteRAM",8]
["GWP_RAM_DieSize",2.1975568110410002,"kg CO2 eq. / (cm² Die-Fläche / RAM-Riegel)",null,"GWP_RAMs",{"$f":" $F$16 * ($F$17 / RAMproDie * GWP_RAM_DieSize + GWP_RAM_Gold + GWP_RAM_PCB + GWP_RAM_T)","v":116.77781927421194},"kg CO2 eq."]
["GWP_RAM_PCB",1.76826416853672,"kg CO2 eq./ RAM-Riegel ",null,"ADP_RAMs",{"$f":" $F$16 * ($F$17 / RAMproDie * ADP_RAM_DieSize + ADP_RAM_Gold + ADP_RAM_PCB + ADP_RAM_T)","v":1.5703583013276727E-2},"kg Sb eq."]
["GWP_RAM_Gold",0.46418241277497602,"kg CO2 eq./ RAM-Riegel",null,"KEA_RAMs",{"$f":" $F$16 * ($F$17 / RAMproDie * KEA_RAM_DieSize + KEA_RAM_Gold + KEA_RAM_PCB + KEA_RAM_T)","v":1525.3768636383172},"MJ"]
["GWP_RAM_T",2.9885384341898629,"kg CO2 eq./ RAM-Riegel"]
["KEA_RAM_DieSize",27.341049999999999,"MJ  / (cm² Die-Fläche / RAM-Riegel)"]
["KEA_RAM_PCB",20.68737937735736,"MJ / RAM-Riegel"]
["KEA_RAM_Gold",7.1825742978519784,"MJ / RAM-Riegel"]
["KEA_RAM_T",46.147007612913654,"MJ / RAM-Riegel",null,"Solid-State-Disks (SSD)"]
["ADP_NAND",6.3049100000000006E-5,"kg Sb eq. / (cm² Die-Fläche / Stück SSD)","GWP_SSDs = AnzahlSSD * (GByteSSD / NANDproDie * GWP_NAND + GWP_SSD_PCB + GWP_SSD_T)","AnzahlSSD",1]
["GWP_NAND",2.1975568110410002,"kg CO2 eq. /(cm² Die-Fläche / Stück SSD)",null,"GByteSSD",500]
["KEA_NAND",27.341049999999999,"MJ / (cm² Die-Fläche / Stück SSD)",null,"GWP_SSDs",{"$f":" $F$26 * ($F$27 / NANDproDie * GWP_NAND + GWP_SSD_PCB + GWP_SSD_T)","v":28.396788681891529},"kg CO2 eq."]
["ADP_SSD_PCB",5.6322420005860713E-4,"kg Sb eq. / Stück SSD",null,"ADP_SSDs",{"$f":" $F$26 * ($F$27 / NANDproDie * ADP_NAND + ADP_SSD_PCB + ADP_SSD_T)","v":1.196297438626861E-3},"kg Sb eq."]
["ADP_SSD_T",7.8603069639398389E-8,"kg Sb eq./ Stück SSD",null,"KEA_SSDs",{"$f":" $F$26 * ($F$27 / NANDproDie * KEA_NAND + KEA_SSD_PCB + KEA_SSD_T)","v":351.33847334808445},"MJ"]
["GWP_SSD_PCB",5.7068031818480014,"kg CO2 eq./ Stück SSD"]
["GWP_SSD_T",0.62715395141879571,"kg CO2 eq./ Stück SSD"]
["KEA_SSD_PCB",67.158188441178098,"MJ / Stück SSD",null,"Hard-Disk-Drives (HDD)"]
["KEA_SSD_T",9.6840910056549063,"MJ / Stück SSD",null,"AnzahlHDD",1]
["ADP_HDD",2.5000000000000001E-4,"kg Sb eq. / Stück HDD","GWP_HDDs = AnzahlHDD * GWP_HDD","GWP_HDDs",{"$f":" $F$34 * GWP_HDD","v":31.1082},"kg CO2 eq."]
["GWP_HDD",31.1082,"kg CO2 eq. / Stück HDD",null,"ADP_HDDs",{"$f":" $F$34 * ADP_HDD","v":2.5000000000000001E-4},"kg Sb eq."]
["KEA_HDD",275.52047999999996,"MJ / Stück HDD",null,"KEA_HDDs",{"$f":" $F$34 * KEA_HDD","v":275.52047999999996},"MJ"]
["ADP_MB",3.6875658909857143E-3,"kg Sb eq. /  (Stück Motherboard / Stück Server)","GWP_MB = GWP_MB"]
["GWP_MB",66.054262056499994,"kg CO2 eq. /  (Stück Motherboard / Stück Server)"]
["KEA_MB",835.69857660465175,"MJ /  (Stück Motherboard / Stück Server)"]
["ADP_RackRest",2.0239499999999997E-2,"kg Sb eq. / (Stück Rackserver mit Restgewicht: 15,45kg)","GWP_RackRest = GWP_RackRest"]
["GWP_RackRest",149.56990499999998,"kg CO2 eq. / (Stück Rackserver mit Restgewicht: 15,45kg)"]
["KEA_RackRest",2200.5294405,"MJ / (Stück Rackserver mit Restgewicht: 15,45kg)"]
["ADP_BladeSystemGeh",0.43185023999999994,"kg Sb eq. / (pro Bladesystem mit 16 Servern)","Standard Blade Server Gehäuse hat 16 einzelne Einschübe --> jeder Bladeserver erhält 1/16 des Blade-Systems\nGWP_BladeSG = GWP_BladeSystemGeh / 16","GWP_BladeSG",{"$f":" GWP_BladeSystemGeh / 16","v":54.978098789999997},"kg CO2 eq."]
["GWP_BladeSystemGeh",879.64958063999995,"kg CO2 eq. / (pro Bladesystem mit 16 Servern)",null,"ADP_BladeSG",{"$f":" ADP_BladeSystemGeh / 16","v":2.6990639999999996E-2},"kg Sb eq."]
["KEA_BladeSystemGeh",12671.493692159998,"MJ / (pro Bladesystem mit 16 Servern)",null,"KEA_BladeSG",{"$f":" KEA_BladeSystemGeh / 16","v":791.96835575999989},"MJ"]
["ADP_BladeRest",6.7200000000000007E-4,"kg Sb eq. / (Stück Server mit Gehäuse: 4.2 kg)","GWP_BladeRest = GWP_BladeRest"]
["GWP_BladeRest",30.870671999999999,"kg CO2 eq. / (Stück Server mit Gehäuse: 4.2 kg)"]
["KEA_BladeRest",435.35041200000001,"MJ / (Stück Server mit Gehäuse: 4.2 kg)",null,"Server"]
["ADP_AssemblyTest",1.4104545E-6,"kg Sb eq./ Stück Server","GWP_AssemblyTest = GWP_AssemblyTest","AnzahlNetzteile",2]
["GWP_AssemblyTest",6.6764099999999997,"kg CO2 eq./ Stück Server",null,"AnzahlServer",1]
["KEA_AssemblyTest",68.640377481649992,"MJ/ Stück Server",null,"Blade-Server"]
["ADP_StorageRest",0.42535000000000001,"kg Sb eq./ Stück Storage-System (32 HDD/SSD)","Standard-Storage-System hat 2 Nodes mit jeweils 16 HHDs/SSDs  --> jede HDD/SSD erhält 1/32 des Storage-Systems\nGWP_StorageRest = GWP_StorageRest / 32 * (AnzahlHDD + AnzahlSSD)","GWP (Bladeserver)",{"$f":" $F$51 * (F5 + F18 +F28 +F35 + F11 + GWP_MB + GWP_BladeRest + F44 + GWP_AssemblyTest + $F$50 * GewichtPSU * GWP_PSU / 16)","v":352.99033684682792},"kg CO2 eq."]
["GWP_StorageRest",883.38247999999999,"kg CO2 eq./ Stück Storage-System (32 HDD/SSD)",null,"ADP (Bladeserver)",{"$f":" $F$51 * (F6 + F19 +F29 +F36 + F12 + ADP_MB + ADP_BladeRest + F45 + ADP_AssemblyTest + $F$50 * GewichtPSU * ADP_PSU / 16)","v":7.1021254240974094E-2},"kg Sb eq."]
["KEA_StorageRest",12235.481830000002,"MJ/ Stück Storage-System (32 HDD/SSD)",null,"KEA (Bladeserver)",{"$f":" $F$51 * (F7 + F20 +F30 +F37 + F13 + KEA_MB + KEA_BladeRest + F46 + KEA_AssemblyTest + $F$50 * GewichtPSU * KEA_PSU / 16)","v":4567.3151081456026},"MJ"]
["ADP_Switch",5.3510000000000002E-2,"kg Sb eq. / Stück Switch","GWP = AnzahlNetzwerk * GWP_Switch","Rack-Server"]
["GWP_Switch",245.8871,"kg CO2 eq. / Stück Switch",null,"GWP (Rackserver)",{"$f":" $F$51 * (F5 + F18 +F28 +F35 + F11 + GWP_MB + GWP_RackRest + GWP_AssemblyTest + $F$50 * GewichtPSU * GWP_PSU)","v":507.82728355682792},"kg CO2 eq."]
["KEA_Switch",3328.03793,"MJ / Stück Switch",null,"ADP (Rackserver)",{"$f":" $F$51 * (F6 + F19 +F29 +F36 + F12 + ADP_MB + ADP_RackRest + ADP_AssemblyTest + $F$50 * GewichtPSU * ADP_PSU)","v":9.4723114240974099E-2},"kg Sb eq."]
["ADP_PSU",8.3000000000000001E-3,"kg Sb eq. / kg PSU","1) Pro Stück \"Bladeserver\": \n            GWP_PSUs = AnzahlNetzteile * GewichtPSU * GWP_PSU / 16 --> Netzteile anteilig auf Server umgelegt\n2) Pro Stück \"Rackserver\":\n            GWP_PSUs = AnzahlNetzteile * GewichtPSU * GWP_PSU\n3) Pro Stück Storage-System\n            GWP_PSUs = AnzahlNetzteile * GewichtPSU * GWP_PSU / 32 * (AnzahlHDD + AnzahlSSD)\n","KEA (Rackserver)",{"$f":" $F$51 * (F7 + F20 +F30 +F37 + F13 + KEA_MB + KEA_RackRest +  KEA_AssemblyTest + $F$50 * GewichtPSU * KEA_PSU)","v":6859.0384558856022},"MJ"]
["GWP_PSU",24.297550000000001,"kg CO2 eq.  / kg PSU"]
["KEA_PSU",351.60337999999996,"MJ  / kg PSU",null,"Storage-System"]
["ADP_Strom",3.4586099999999998E-7,"kg Sb eq. / kWh"," GWP_Strom = StrombedarfRZgesamt * GWP_Strom","AnzahlNetzteile",2]
["GWP_Strom",0.63527,"kg CO2 eq.  / kWh",null,"AnzahlSSD",16]
["KEA_Strom",10.669650000000001,"MJ  / kWh",null,"GByteSSD",500]
["ADP_R134A",8.6995800000000005E-5,"kg Sb eq. / kg","Faktoren beziehen sich auf Herstellung und Nutzungsphase\nAbhängig von der Eingabe:\n1) Kaeltemittelemissionen = KaeltemittelNachfuellmengeProJahr\n2) Kaeltemittelemissionen = LeckagerateProJahr * KaeltemittelFuellmenge\n3) Kaeltemittelemissionen = KMLeck_DV * KaeltemittelFuellmenge\n4) Kaeltemittelemissionen = KMLeck_FK * KaeltemittelFuellmenge\n5) Kaeltemittelemissionen = KMLeck_std * KaeltemittelFuellmenge\n\nGWP_KMges = Anzahl * Kaeltemittelemissionen * GWP_KM\n","AnzahlHDD",16]
["ADP_R290 ",4.7712500000000001E-7,"kg Sb eq. / kg",null,"GPW (Storage)",{"$f":" ($F$65 * GWP_HDD + $F$63 * ($F$64 / NANDproDie * GWP_NAND + GWP_SSD_PCB + GWP_SSD_T) + $F$62 * GewichtPSU * GWP_PSU / 32 * ($F$65 + $F$63) + GWP_StorageRest)","v":1932.6524989102645},"kg CO2 eq."]
["ADP_R32",8.7286299999999998E-5,"kg Sb eq. / kg",null,"ADP (Storage)",{"$f":" ($F$65 * ADP_HDD + $F$63 * ($F$64 / NANDproDie * ADP_NAND + ADP_SSD_PCB + ADP_SSD_T) + $F$62 * GewichtPSU * ADP_PSU / 32 * ($F$65 + $F$63) + ADP_StorageRest)","v":0.48169075901802977},"kg Sb eq."]
["ADP_R404A",9.95495E-5,"kg Sb eq. / kg",null,"KEA (Storage)",{"$f":" ($F$65 * KEA_HDD + $F$63 * ($F$64 / NANDproDie * KEA_NAND + KEA_SSD_PCB + KEA_SSD_T) + $F$62 * GewichtPSU * KEA_PSU / 32 * ($F$65 + $F$63) + KEA_StorageRest)","v":23671.638603569354},"MJ"]
["ADP_R407A",9.9205300000000004E-5,"kg Sb eq. / kg"]
["ADP_R407C",9.4657199999999999E-5,"kg Sb eq. / kg",null,"Netzwerk-Systeme"]
["ADP_R410A",1E-4,"kg Sb eq. / kg",null,"GWP_Switch",{"$f":" GWP_Switch","v":245.8871},"kg CO2 eq."]
["ADP_R717 ",5.1290000000000004E-6,"kg Sb eq. / kg",null,"ADP_Switch",{"$f":" ADP_Switch","v":5.3510000000000002E-2},"kg Sb eq."]
["ADP_R718 ",1.1316200000000001E-9,"kg Sb eq. / kg",null,"KEA_Switch",{"$f":" KEA_Switch","v":3328.03793},"MJ"]
["ADP_R744 ",4.9270600000000004E-6,"kg Sb eq. / kg"]
["ADP_KMsonst",null,"kg Sb eq. / kg","Bei Nutzung eines sonstigen KM selbst eintragen"]
["ADP_KMdefault",8.6995800000000005E-5,"kg Sb eq. / kg","Default = R134a"]
["GWP_R134A",1445.6612299999999,"kg CO2 eq. / kg"]
["GWP_R290 ",3.82728,"kg CO2 eq. / kg"]
["GWP_R32",983.02836000000002,"kg CO2 eq. / kg"]
["GWP_R404A",3930.5483199999999,"kg CO2 eq. / kg"]
["GWP_R407A",2118.8125199999999,"kg CO2 eq. / kg"]
["GWP_R407C",1786.45434,"kg CO2 eq. / kg"]
["GWP_R410A",2096.9421299999999,"kg CO2 eq. / kg"]
["GWP_R717 ",2.0335299999999998,"kg CO2 eq. / kg"]
["GWP_R718 ",3.6000000000000002E-4,"kg CO2 eq. / kg"]
["GWP_R744 ",1.7771400000000002,"kg CO2 eq. / kg"]
["GWP_KMsonst",null,"kg CO2 eq. / kg","Bei Nutzung eines sonstigen KM selbst eintragen"]
["GWP_KMdefault",1445.6612299999999,"kg CO2 eq. / kg","Default = R134a"]
["KEA_R134A",120.31166999999999,"MJ / kg"]
["KEA_R290 ",52.014640000000007,"MJ / kg"]
["KEA_R32",103.28635000000001,"MJ / kg"]
["KEA_R404A",149.31241,"MJ / kg"]
["KEA_R407A",139.59117000000001,"MJ / kg"]
["KEA_R407C",130.57369,"MJ / kg"]
["KEA_R410A",140.15469999999999,"MJ / kg"]
["KEA_R717 ",42.322540000000011,"MJ / kg"]
["KEA_R718 ",7.1603478149999998E-3,"MJ / kg"]
["KEA_R744 ",9.8428100000000018,"MJ / kg"]
["KEA_KMsonst",null,"MJ / kg","Bei Nutzung eines sonstigen KM selbst eintragen"]
["KEA_KMdefault",120.31166999999999,"MJ / kg","Default = R134a"]
["KMLeck_DV",0.05,"100%","Kaeltemittelemissionen = LeckagerateProJahr * KaeltemittelFuellmenge\nLeckagerateProJahr = KMLeck_DV\nLeckagerateProJahr = KMLeck_FK\nLeckagerateProJahr = KMLeck_std"]
["KMLeck_FK",0.03,"100%"]
["KMLeck_std",0.05,"100%"]
["KM_Art1","Direktverdampfer"]
["KM_Art2","Fluessigkeitskuehler"]
["KM_std"]
["ADP_Heizoel",5.6123684455620748E-8,"kg Sb eq./ kWh (Heizwert des Brennstoffs)","1) GWP_Brennstoffart = GWP_Heizoel ' Default, wenn kein BS angegeben\n2) GWP_Brennstoffart = GWP_Erdgas\n3) GWP_Brennstoffart = GWP_Fluessiggas\n4) GWP_Brennstoffart = GWP_HolzPellets\n5) GWP_Brennstoffart = GWP_HolzHackschnitzel\n6) GWP_Brennstoffart = GWP_BS_sonst ' ADP, KEA und GWP müssen selbst eingetragen werden\n\nGWP_Brennstoff = Brennstoffbedarf * GWP_Brennstoffart\n"]
["ADP_Erdgas",1.732318199309525E-8,"kg Sb eq./ kWh (Heizwert des Brennstoffs)"]
["ADP_Fluessiggas",3.2158938329430129E-8,"kg Sb eq./ kWh (Heizwert des Brennstoffs)"]
["ADP_HolzPellets",1.0944595924104004E-7,"kg Sb eq./ kWh (Heizwert des Brennstoffs)"]
["ADP_HolzHackschnitzel",1.8772660063964426E-7,"kg Sb eq./ kWh (Heizwert des Brennstoffs)"]
["ADP_BS_sonst",null,"kg Sb eq./ kWh (Heizwert des Brennstoffs)"]
["GWP_Heizoel",0.31318732492244644,"kg CO2 eq./ kWh (Heizwert des Brennstoffs)"]
["GWP_Erdgas",0.24784073277617097,"kg CO2 eq./ kWh (Heizwert des Brennstoffs)"]
["GWP_Fluessiggas",0.28308425130829501,"kg CO2 eq./ kWh (Heizwert des Brennstoffs)"]
["GWP_HolzPellets",3.4125087842586083E-2,"kg CO2 eq./ kWh (Heizwert des Brennstoffs)"]
["GWP_HolzHackschnitzel",4.3134616699104573E-2,"kg CO2 eq./ kWh (Heizwert des Brennstoffs)"]
["GWP_BS_sonst",null,"kg CO2 eq./ kWh (Heizwert des Brennstoffs)"]
["KEA_Heizoel",4.8104483876028974,"MJ / kWh (Heizwert des Brennstoffs)"]
["KEA_Erdgas",4.7922163978236778,"MJ / kWh (Heizwert des Brennstoffs)"]
["KEA_Fluessiggas",4.5188977361436384,"MJ / kWh (Heizwert des Brennstoffs)"]
["KEA_HolzPellets",3.3075755446240338,"MJ / kWh (Heizwert des Brennstoffs)"]
["KEA_HolzHackschnitzel",3.2353480808872992,"MJ / kWh (Heizwert des Brennstoffs)"]
["KEA_BS_sonst",null,"MJ / kWh (Heizwert des Brennstoffs)"]
["BS_Art1","Heizoel"]
["BS_Art2","Erdgas"]
["BS_Art3","Fluessiggas"]
["BS_Art4","Holz-Pellets"]
["BS_Art5","Holz-Hackschnitzel"]
["BS_sonst",null,null,"Bei Nutzung eines sonstigen Brennstoffs BS_sonst selbst eintragen"]
["DieSizeFaktor",0.24584,"cm²/Kern","In Zelle 2-10 für \"AnzahlKerneProCPU * DieSizeFaktor + DieSizeKonstante\"\nDieSizeProCPU [cm²] = 0,24584 * AnzahlKerneProCPU + 0,49157"]
["DieSizeKonstante",0.49157000000000001,"cm²"]
["RAMproDie",1.875,"GByte/cm²","in Zelle 14-25 verwendet"]
["NANDproDie",49.802238805970099,"Gbyte/cm²","in Zelle 26-34 verwendet"]
["GewichtRackRest",15.451000000000001,"kg/Rack","in Zelle 47-49 verwendet"]
["GewichtPSU",2,"kg/PSU","in Zelle 65-67 verwendet"]
["GewichtBladeSystemOhnePSU",94.703999999999994,"kg/ (BladeSystemgehäuse für insg. 16 Servers)","in Zelle 50-52 verwendet"]
["GewichtBladeRest",4.2,"kg Bladeservergehäuse pro Server","in Zelle 53-55 verwendet"]
["GewichtStorageRest",25,"kg"]
["ND_default_server",3,"a"]
["ND_default_storage",3,"a"]
["ND_default_switch",3,"a"]
["ND_default_kaelte",10,"a"]
["Pel_Server_Default",400,"W","bessere Defaultwerte! 170 - 370 W pro CPU oder 40 - 100 W pro Kern"]
["Pel_Storage_Default",350,"W","bessere Defaultwerte! 10 - 20 W pro HDD/SSD"]
["Pel_Switch_Default",200,"W","bessere Defaultwerte! 0,5 - 2 W pro Port"]
["TageProJahr",365.25,"d/a"]
["Server",null,null,"GWP = AnzahlServer * (GWP_CPUs + GWP_RAMs + GWP_SSDs + GWP_HDDs + GWP_KKs + GWP_MB + GWP_RackRest + GWP_BladeRest + GWP_BladeSG + GWP_AssemblyTest + GWP_PSUs) "]
["Speichersysteme",null,null,"GWP = AnzahlStorage * (GWP_HDDs + GWP_SSDs + GWP_PSUs + GWP_StorageRest)"]
["Netzwerk",null,null,"GWP = AnzahlNetzwerk * GWP_Switch"]
["Strom",null,null,"GWP_Strom = StrombedarfRZgesamt * GWP_Strom"]
["Brennstoff",null,null,"GWP_Brennstoff = Brennstoffbedarf * GWP_Brennstoffart"]
["Wasser für Kühlung",null,null,"GWP = Anzahl * WasserverbrauchProJahr"]
["Kältemittel",null,null,"GWP = Anzahl * Kaeltemittelemissionen * GWP_KM"]

{"sheet":"2h_VirtuelleServer","index":12,"n_rows":27,"n_cols":29,"rows_kept":27,"cut":false,"hidden":false,"merged":[[1,1,1,6],[5,2,5,4],[6,2,6,4],[7,2,7,4]]}
[]
[null,"Erfassung von Virtuellen Servern und zugeordneten Diensten oder Applikationen"]
[null,"Monitoring der Nutzungsphase des Rechenzentrums"]
[null,null,null,null,null,null,"Legende"]
[null,"Allgemeine Angaben",null,null,null,null,"Ergänzende Angaben Cloud-Services"]
[null,"Rechenzentrum:",{"$f":"IF('Allgemeine Angaben'!C6<>\"\",'Allgemeine Angaben'!C6,\"\")","v":"Testrechenzentrum"},null,null,null,"Automatisch berechnete Werte (keine Eingabe)"]
[null,"Bilanzdatum von:",{"$f":"IF('Allgemeine Angaben'!C23<>\"\",'Allgemeine Angaben'!C23,\"\")","v":"2018-01-01"}]
[null,"Bilanzdatum bis:",{"$f":"IF('Allgemeine Angaben'!C24<>\"\",'Allgemeine Angaben'!C24,\"\")","v":"2018-12-31"}]
[]
[]
[null,"Hinweis: Alle Angaben werden pro Virtuellem Server gemacht, auch wenn dieser mehrfach vorkommt"]
[null,"i.d.R. = 1","Bezeichnung der Virtuellen Maschine","wenn mehrere Sockel belegt sind, dann Produkt sockets*cores",null,null,null,"z.B. Mailserver, Lohnbuchhaltung, Webserver, Office-Anwendungen","z.B. E-Mail-Postfach, Virtueller PC, Office-365-Nutzer, Mitarbeiter",null,null,null,null,null,null,null,null,"Pivot-Tabelle (mit Rechtsklick aktualisieren)",null,null,null,null,null,null,"Prozentualer Anteil des Services an jeweiliger Ressource"]
[null,"Anzahl indentisch genutzter VMs","Eindeutige ID oder Komma-separierte ID-Liste","Anzahl virtuelle CPU-Kerne (cores) pro VM","Virtuelle RAM-Kapazität pro VM","Virtueller Speicherplatz pro VM","Bandbreite Virtuelle Netzwerkkarte (NIC) pro VM","Bezeichnung Dienst/Applikation","Beschreibung einzelne Service-Einheit","Anzahl Serviceeinheiten pro VM","Kommentar (Erläuterungen)","Cores","RAM","Disk","NIC","Services",null,"Service","CPU-Kerne","Arbeitsspeicher","Festplatte","Netzwerk","Dienste",null,"CPU-Kerne","Arbeitsspeicher","Festplatte","Netzwerk","Dienste"]
[null,"[Stck]","[Text (,Text, Text, ...)]","[Anzahl]","[GByte]","[GByte]","[Mbit/s]","[Text]","[Text]","[Stck]","[Text]","[Anzahl]","[GByte]","[GByte]","[Mbit/s]","[Stck]",null,"Desktop Virtualisierung",32,34,2500,16000,990,null,{"$f":"S14/GETPIVOTDATA(\"CPU-Kerne\",$R$13)","v":0.5714285714285714},{"$f":"T14/GETPIVOTDATA(\"Arbeitsspeicher\",$R$13)","v":0.34},{"$f":"U14/GETPIVOTDATA(\"Festplatte\",$R$13)","v":0.352112676056338},{"$f":"V14/GETPIVOTDATA(\"Netzwerk\",$R$13)","v":0.48484848484848486},{"$f":"W14/GETPIVOTDATA(\"Dienste\",$R$13)","v":0.47030878859857483}]
[null,"Anzahl","UniqueID","AnzahlKerne","GByteRAM","GByteDisk","MaximaleBandbreite","ServiceBezeichnung","ServiceEinheit","ServiceAnzahl","Kommentar","Cores","RAM","Disk","NIC","Services",null,"Office 365",11,42,2200,11000,1100,null,{"$f":"S15/GETPIVOTDATA(\"CPU-Kerne\",$R$13)","v":0.19642857142857142},{"$f":"T15/GETPIVOTDATA(\"Arbeitsspeicher\",$R$13)","v":0.42},{"$f":"U15/GETPIVOTDATA(\"Festplatte\",$R$13)","v":0.30985915492957744},{"$f":"V15/GETPIVOTDATA(\"Netzwerk\",$R$13)","v":0.33333333333333331},{"$f":"W15/GETPIVOTDATA(\"Dienste\",$R$13)","v":0.5225653206650831}]
[null,10,"VM-113",1,4,200,1000,"Office 365","Mitarbeiter",100,null,{"$f":"VirtuelleServer[[#This Row],[Anzahl]]*VirtuelleServer[[#This Row],[AnzahlKerne]]","v":10},{"$f":"VirtuelleServer[[#This Row],[Anzahl]]*VirtuelleServer[[#This Row],[GByteRAM]]","v":40},{"$f":"VirtuelleServer[[#This Row],[Anzahl]]*VirtuelleServer[[#This Row],[GByteDisk]]","v":2000},{"$f":"VirtuelleServer[[#This Row],[Anzahl]]*VirtuelleServer[[#This Row],[MaximaleBandbreite]]","v":10000},{"$f":"VirtuelleServer[[#This Row],[Anzahl]]*VirtuelleServer[[#This Row],[ServiceAnzahl]]","v":1000},null,"Simulation",8,8,400,2000,8,null,0.14285714285714285,0.08,5.6338028169014086E-2,6.0606060606060608E-2,3.8004750593824228E-3]
[null,2,"VM-114, VM-115",4,4,200,1000,"Simulation","Wettervorhersage",4,null,{"$f":"VirtuelleServer[[#This Row],[Anzahl]]*VirtuelleServer[[#This Row],[AnzahlKerne]]","v":8},{"$f":"VirtuelleServer[[#This Row],[Anzahl]]*VirtuelleServer[[#This Row],[GByteRAM]]","v":8},{"$f":"VirtuelleServer[[#This Row],[Anzahl]]*VirtuelleServer[[#This Row],[GByteDisk]]","v":400},{"$f":"VirtuelleServer[[#This Row],[Anzahl]]*VirtuelleServer[[#This Row],[MaximaleBandbreite]]","v":2000},{"$f":"VirtuelleServer[[#This Row],[Anzahl]]*VirtuelleServer[[#This Row],[ServiceAnzahl]]","v":8},null,"Webserver",5,16,2000,4000,7,null,8.9285714285714288E-2,0.16,0.28169014084507044,0.12121212121212122,3.3254156769596198E-3]
[null,3,"VM-116, VM-117, VM-118",1,4,500,1000,"Webserver","Internetseite",2,null,{"$f":"VirtuelleServer[[#This Row],[Anzahl]]*VirtuelleServer[[#This Row],[AnzahlKerne]]","v":3},{"$f":"VirtuelleServer[[#This Row],[Anzahl]]*VirtuelleServer[[#This Row],[GByteRAM]]","v":12},{"$f":"VirtuelleServer[[#This Row],[Anzahl]]*VirtuelleServer[[#This Row],[GByteDisk]]","v":1500},{"$f":"VirtuelleServer[[#This Row],[Anzahl]]*VirtuelleServer[[#This Row],[MaximaleBandbreite]]","v":3000},{"$f":"VirtuelleServer[[#This Row],[Anzahl]]*VirtuelleServer[[#This Row],[ServiceAnzahl]]","v":6},null,"Gesamtergebnis",56,100,7100,33000,2105,null,1,1,1,1,1]
[null,1,"VM-119",2,4,500,1000,"Webserver","Internetseite",1,null,{"$f":"VirtuelleServer[[#This Row],[Anzahl]]*VirtuelleServer[[#This Row],[AnzahlKerne]]","v":2},{"$f":"VirtuelleServer[[#This Row],[Anzahl]]*VirtuelleServer[[#This Row],[GByteRAM]]","v":4},{"$f":"VirtuelleServer[[#This Row],[Anzahl]]*VirtuelleServer[[#This Row],[GByteDisk]]","v":500},{"$f":"VirtuelleServer[[#This Row],[Anzahl]]*VirtuelleServer[[#This Row],[MaximaleBandbreite]]","v":1000},{"$f":"VirtuelleServer[[#This Row],[Anzahl]]*VirtuelleServer[[#This Row],[ServiceAnzahl]]","v":1},null,null,null,null,null,null,null,null,0,0,0,0,0]
[null,1,"VM-120",2,4,1000,1000,"Desktop Virtualisierung","Mitarbeiter",200,null,{"$f":"VirtuelleServer[[#This Row],[Anzahl]]*VirtuelleServer[[#This Row],[AnzahlKerne]]","v":2},{"$f":"VirtuelleServer[[#This Row],[Anzahl]]*VirtuelleServer[[#This Row],[GByteRAM]]","v":4},{"$f":"VirtuelleServer[[#This Row],[Anzahl]]*VirtuelleServer[[#This Row],[GByteDisk]]","v":1000},{"$f":"VirtuelleServer[[#This Row],[Anzahl]]*VirtuelleServer[[#This Row],[MaximaleBandbreite]]","v":1000},{"$f":"VirtuelleServer[[#This Row],[Anzahl]]*VirtuelleServer[[#This Row],[ServiceAnzahl]]","v":200},null,null,null,null,null,null,null,null,0,0,0,0,0]
[null,1,"VM-121",1,2,200,1000,"Office 365","Mitarbeiter",100,null,{"$f":"VirtuelleServer[[#This Row],[Anzahl]]*VirtuelleServer[[#This Row],[AnzahlKerne]]","v":1},{"$f":"VirtuelleServer[[#This Row],[Anzahl]]*VirtuelleServer[[#This Row],[GByteRAM]]","v":2},{"$f":"VirtuelleServer[[#This Row],[Anzahl]]*VirtuelleServer[[#This Row],[GByteDisk]]","v":200},{"$f":"VirtuelleServer[[#This Row],[Anzahl]]*VirtuelleServer[[#This Row],[MaximaleBandbreite]]","v":1000},{"$f":"VirtuelleServer[[#This Row],[Anzahl]]*VirtuelleServer[[#This Row],[ServiceAnzahl]]","v":100},null,null,null,null,null,null,null,null,0,0,0,0,0]
[null,1,"VM-122",2,2,100,1000,"Desktop Virtualisierung","Mitarbeiter",50,null,{"$f":"VirtuelleServer[[#This Row],[Anzahl]]*VirtuelleServer[[#This Row],[AnzahlKerne]]","v":2},{"$f":"VirtuelleServer[[#This Row],[Anzahl]]*VirtuelleServer[[#This Row],[GByteRAM]]","v":2},{"$f":"VirtuelleServer[[#This Row],[Anzahl]]*VirtuelleServer[[#This Row],[GByteDisk]]","v":100},{"$f":"VirtuelleServer[[#This Row],[Anzahl]]*VirtuelleServer[[#This Row],[MaximaleBandbreite]]","v":1000},{"$f":"VirtuelleServer[[#This Row],[Anzahl]]*VirtuelleServer[[#This Row],[ServiceAnzahl]]","v":50},null,null,null,null,null,null,null,null,0,0,0,0,0]
[null,2,"VM-123",2,2,100,1000,"Desktop Virtualisierung","Mitarbeiter",51,null,{"$f":"VirtuelleServer[[#This Row],[Anzahl]]*VirtuelleServer[[#This Row],[AnzahlKerne]]","v":4},{"$f":"VirtuelleServer[[#This Row],[Anzahl]]*VirtuelleServer[[#This Row],[GByteRAM]]","v":4},{"$f":"VirtuelleServer[[#This Row],[Anzahl]]*VirtuelleServer[[#This Row],[GByteDisk]]","v":200},{"$f":"VirtuelleServer[[#This Row],[Anzahl]]*VirtuelleServer[[#This Row],[MaximaleBandbreite]]","v":2000},{"$f":"VirtuelleServer[[#This Row],[Anzahl]]*VirtuelleServer[[#This Row],[ServiceAnzahl]]","v":102},null,null,null,null,null,null,null,null,0,0,0,0,0]
[null,3,"VM-124",2,2,100,1000,"Desktop Virtualisierung","Mitarbeiter",52,null,{"$f":"VirtuelleServer[[#This Row],[Anzahl]]*VirtuelleServer[[#This Row],[AnzahlKerne]]","v":6},{"$f":"VirtuelleServer[[#This Row],[Anzahl]]*VirtuelleServer[[#This Row],[GByteRAM]]","v":6},{"$f":"VirtuelleServer[[#This Row],[Anzahl]]*VirtuelleServer[[#This Row],[GByteDisk]]","v":300},{"$f":"VirtuelleServer[[#This Row],[Anzahl]]*VirtuelleServer[[#This Row],[MaximaleBandbreite]]","v":3000},{"$f":"VirtuelleServer[[#This Row],[Anzahl]]*VirtuelleServer[[#This Row],[ServiceAnzahl]]","v":156},null,null,null,null,null,null,null,null,0,0,0,0,0]
[null,4,"VM-125",2,2,100,1000,"Desktop Virtualisierung","Mitarbeiter",53,null,{"$f":"VirtuelleServer[[#This Row],[Anzahl]]*VirtuelleServer[[#This Row],[AnzahlKerne]]","v":8},{"$f":"VirtuelleServer[[#This Row],[Anzahl]]*VirtuelleServer[[#This Row],[GByteRAM]]","v":8},{"$f":"VirtuelleServer[[#This Row],[Anzahl]]*VirtuelleServer[[#This Row],[GByteDisk]]","v":400},{"$f":"VirtuelleServer[[#This Row],[Anzahl]]*VirtuelleServer[[#This Row],[MaximaleBandbreite]]","v":4000},{"$f":"VirtuelleServer[[#This Row],[Anzahl]]*VirtuelleServer[[#This Row],[ServiceAnzahl]]","v":212},null,null,null,null,null,null,null,null,0,0,0,0,0]
[null,5,"VM-126",2,2,100,1000,"Desktop Virtualisierung","Mitarbeiter",54,null,{"$f":"VirtuelleServer[[#This Row],[Anzahl]]*VirtuelleServer[[#This Row],[AnzahlKerne]]","v":10},{"$f":"VirtuelleServer[[#This Row],[Anzahl]]*VirtuelleServer[[#This Row],[GByteRAM]]","v":10},{"$f":"VirtuelleServer[[#This Row],[Anzahl]]*VirtuelleServer[[#This Row],[GByteDisk]]","v":500},{"$f":"VirtuelleServer[[#This Row],[Anzahl]]*VirtuelleServer[[#This Row],[MaximaleBandbreite]]","v":5000},{"$f":"VirtuelleServer[[#This Row],[Anzahl]]*VirtuelleServer[[#This Row],[ServiceAnzahl]]","v":270},null,null,null,null,null,null,null,null,0,0,0,0,0]
[null,null,null,null,null,null,null,null,null,null,null,null,null,null,null,null,null,null,null,null,null,null,null,null,0,0,0,0,0]

{"sheet":"2i_Services","index":13,"n_rows":28,"n_cols":11,"rows_kept":28,"cut":false,"hidden":false,"merged":[[5,2,5,4],[6,2,6,4],[7,2,7,4]]}
[]
[null,"Monitoring Services - Anlage 2i zur KPI4DCE-Berechnung"]
[]
[]
[null,"Allgemeine Angaben",null,null,null,null,null,"Obligatorische Angaben Antragstellung Blauer Engel"]
[null,"Rechenzentrum:",{"$f":"IF('Allgemeine Angaben'!C6<>\"\",'Allgemeine Angaben'!C6,\"\")","v":"Testrechenzentrum"},null,null,null,null,"Ergänzende Angaben KPI4DCE"]
[null,"Bilanzdatum von:",{"$f":"IF('Allgemeine Angaben'!C23<>\"\",'Allgemeine Angaben'!C23,\"\")","v":"2018-01-01"},null,null,null,null,"* Angaben für Aufwand Nutzungsphase"]
[null,"Bilanzdatum bis:",{"$f":"IF('Allgemeine Angaben'!C24<>\"\",'Allgemeine Angaben'!C24,\"\")","v":"2018-12-31"},null,null,null,null,"** Angaben für Zuordnung (Allokation)"]
[null,null,null,null,null,null,null,"*** Angaben für Nutzen"]
[null,null,null,null,null,null,null,"Automatisch berechnete Werte (keine Eingabe)"]
[]
[]
[null,"Beginn Monitoring-zeitraum","Ende Monitoring-zeitraum","Service-Bezeichnung","Anzahl Service Einheiten (SU)","Einheit Service Einheit","Anteil an Server","Anteil an Storage","Anteil an Netzwerk","Anteil an Infrastruktur","Anteil Monitoring- zeitraum im Berichtszeitraum"]
[null,"[TT.MM.JJJ]","[TT.MM.JJJ]","[Text]","[Stck]","[Text]","{0...1}","{0...1}","{0...1}","{0...1}","[-]"]
[null,"MonitoringStart","MonitoringEnde","ServiceBezeichnung","AnzahlServiceEinheiten","Unit","AnteilAnServer","AnteilAnStorage","AnteilAnNetzwerk","AnteilAnInfrastruktur","RatioMZzuBZ"]
[null,"2018-01-01","2018-12-31","Virtuelle Server",1000,"Stück",0.8,0.8,0.9,0.8,{"$f":"KorrFaktBZ(Report_start*1,Report_end*1,Services[[#This Row],[MonitoringStart]]*1,Services[[#This Row],[MonitoringEnde]]*1)","v":1}]
[null,"2018-01-01","2018-12-31","Lohnabrechnung",100000,"Konten",0.2,0.2,0.1,0.2,{"$f":"KorrFaktBZ(Report_start*1,Report_end*1,Services[[#This Row],[MonitoringStart]]*1,Services[[#This Row],[MonitoringEnde]]*1)","v":1}]
[null,null,null,null,null,null,null,null,null,null,{"$f":"KorrFaktBZ(Report_start*1,Report_end*1,Services[[#This Row],[MonitoringStart]]*1,Services[[#This Row],[MonitoringEnde]]*1)","v":0}]
[null,null,null,null,null,null,null,null,null,null,{"$f":"KorrFaktBZ(Report_start*1,Report_end*1,Services[[#This Row],[MonitoringStart]]*1,Services[[#This Row],[MonitoringEnde]]*1)","v":0}]
[null,null,null,null,null,null,null,null,null,null,{"$f":"KorrFaktBZ(Report_start*1,Report_end*1,Services[[#This Row],[MonitoringStart]]*1,Services[[#This Row],[MonitoringEnde]]*1)","v":0}]
[null,null,null,null,null,null,null,null,null,null,{"$f":"KorrFaktBZ(Report_start*1,Report_end*1,Services[[#This Row],[MonitoringStart]]*1,Services[[#This Row],[MonitoringEnde]]*1)","v":0}]
[null,null,null,null,null,null,null,null,null,null,{"$f":"KorrFaktBZ(Report_start*1,Report_end*1,Services[[#This Row],[MonitoringStart]]*1,Services[[#This Row],[MonitoringEnde]]*1)","v":0}]
[null,null,null,null,null,null,null,null,null,null,{"$f":"KorrFaktBZ(Report_start*1,Report_end*1,Services[[#This Row],[MonitoringStart]]*1,Services[[#This Row],[MonitoringEnde]]*1)","v":0}]
[null,null,null,null,null,null,null,null,null,null,{"$f":"KorrFaktBZ(Report_start*1,Report_end*1,Services[[#This Row],[MonitoringStart]]*1,Services[[#This Row],[MonitoringEnde]]*1)","v":0}]
[null,null,null,null,null,null,null,null,null,null,{"$f":"KorrFaktBZ(Report_start*1,Report_end*1,Services[[#This Row],[MonitoringStart]]*1,Services[[#This Row],[MonitoringEnde]]*1)","v":0}]
[null,null,null,null,null,null,null,null,null,null,{"$f":"KorrFaktBZ(Report_start*1,Report_end*1,Services[[#This Row],[MonitoringStart]]*1,Services[[#This Row],[MonitoringEnde]]*1)","v":0}]
[null,null,null,null,null,null,null,null,null,null,{"$f":"KorrFaktBZ(Report_start*1,Report_end*1,Services[[#This Row],[MonitoringStart]]*1,Services[[#This Row],[MonitoringEnde]]*1)","v":0}]
[null,null,null,null,null,null,null,null,null,null,{"$f":"KorrFaktBZ(Report_start*1,Report_end*1,Services[[#This Row],[MonitoringStart]]*1,Services[[#This Row],[MonitoringEnde]]*1)","v":0}]

{"sheet":"Übersicht Datenbedarf","index":14,"n_rows":134,"n_cols":3,"rows_kept":134,"cut":false,"hidden":false,"merged":[]}
["parent","name","type"]
["Serverdaten","AnzahlServer","xs:integer"]
["Serverdaten","UniqueID","xs:string"]
["Serverdaten","DatumInbetriebnahme","xs:dateTime"]
["Serverdaten","DatumAusserbetriebnahme","xs:dateTime"]
["Serverdaten","Herstellername","xs:string"]
["Serverdaten","Modellname","xs:string"]
["Serverdaten","Nennleistung","xs:decimal"]
["Serverdaten","NetzeilEnergieStandard","xs:string"]
["Serverdaten","ServerBenchmarkBezeichnung","xs:string"]
["Serverdaten","ServerBenchmarkWert","xs:decimal"]
["Serverdaten","BegruendungAusnahme","xs:string"]
["Serverdaten","GeplanteNutzungsdauer","xs:integer"]
["Serverdaten","ServertypRack_Blade","xs:string"]
["Serverdaten","AnteilAmBladeSystem","xs:decimal"]
["Serverdaten","AnschaffungskostenProStueck","xs:decimal"]
["Serverdaten","WaehrungAnschaffungskosten","xs:string"]
["Serverdaten","AnzahlCPU","xs:integer"]
["Serverdaten","AnzahlKerneProCPU","xs:integer"]
["Serverdaten","GByteRAM","xs:integer"]
["Serverdaten","AnzahlRAMModule","xs:integer"]
["Serverdaten","AnzahlHDD","xs:integer"]
["Serverdaten","AnzahlSSD","xs:integer"]
["Serverdaten","GByteSSD","xs:integer"]
["Serverdaten","AnzahlNetzteile","xs:integer"]
["Serverdaten","Gewicht","xs:decimal"]
["Serverdaten","MittlereCPUAuslastung","xs:decimal"]
["Serverdaten","MittlereLeistungsaufnahme","xs:decimal"]
["Serverdaten","EnergiebedarfProJahr","xs:decimal"]
["Storagedaten","AnzahlStorage","xs:integer"]
["Storagedaten","UniqueID","xs:string"]
["Storagedaten","DatumInbetriebnahme","xs:dateTime"]
["Storagedaten","DatumAusserbetriebnahme","xs:dateTime"]
["Storagedaten","Herstellername","xs:string"]
["Storagedaten","Modellname","xs:string"]
["Storagedaten","Nennleistung","xs:decimal"]
["Storagedaten","SpeicherkapazitaetGByte","xs:decimal"]
["Storagedaten","AnzahlHDD","xs:integer"]
["Storagedaten","AnzahlSSD","xs:integer"]
["Storagedaten","GeplanteNutzungsdauer","xs:decimal"]
["Storagedaten","AnschaffungskostenProStueck","xs:decimal"]
["Storagedaten","WaehrungAnschaffungskosten","xs:string"]
["Storagedaten","GByteSSD","xs:decimal"]
["Storagedaten","AnzahlNetzteile","xs:decimal"]
["Storagedaten","Gewicht","xs:decimal"]
["Storagedaten","MittlereBelegungSpeicherplatz","xs:decimal"]
["Storagedaten","MittlereAnzahlSpeicherzugriffeProSekundeIOPS","xs:decimal"]
["Storagedaten","MittlereDatenmengeLesenSchreibenProSekunde","xs:decimal"]
["Storagedaten","MittlereLeistungsaufnahme","xs:decimal"]
["Storagedaten","EnergiebedarfProJahr","xs:decimal"]
["Netzwerkdaten","AnzahlNetzwerk","xs:integer"]
["Netzwerkdaten","UniqueID","xs:string"]
["Netzwerkdaten","DatumInbetriebnahme","xs:dateTime"]
["Netzwerkdaten","DatumAusserbetriebnahme","xs:dateTime"]
["Netzwerkdaten","Herstellername","xs:string"]
["Netzwerkdaten","Modellname","xs:string"]
["Netzwerkdaten","Nennleistung","xs:decimal"]
["Netzwerkdaten","GeplanteNutzungsdauer","xs:decimal"]
["Netzwerkdaten","AnschaffungskostenProStueck","xs:decimal"]
["Netzwerkdaten","WaehrungAnschaffungskosten","xs:string"]
["Netzwerkdaten","AnzahlPorts","xs:integer"]
["Netzwerkdaten","MaximaleBandbreiteProPort","xs:decimal"]
["Netzwerkdaten","Netzwerkebene","xs:string"]
["Netzwerkdaten","AnzahlNetzteile","xs:integer"]
["Netzwerkdaten","Gewicht","xs:decimal"]
["Netzwerkdaten","MittlereGenutzteBandbreiteInternerDatenverkehr","xs:decimal"]
["Netzwerkdaten","MittlereGenutzteBandbreiteExternerDatenverkehr","xs:decimal"]
["Netzwerkdaten","MittlereLeistungsaufnahme","xs:decimal"]
["Netzwerkdaten","EnergiebedarfProJahr","xs:decimal"]
["Stromverteilungsdaten","AnzahlPDU","xs:integer"]
["Stromverteilungsdaten","UniqueID","xs:string"]
["Stromverteilungsdaten","DatumInbetriebnahme","xs:dateTime"]
["Stromverteilungsdaten","DatumAusserbetriebnahme","xs:dateTime"]
["Stromverteilungsdaten","Herstellername","xs:string"]
["Stromverteilungsdaten","Modellname","xs:string"]
["Stromverteilungsdaten","AnzahlStromausgaenge","xs:integer"]
["Stromverteilungsdaten","VerlustleistungGesamt","xs:decimal"]
["Kaelteanlagendaten","AnzahlKaelte","xs:integer"]
["Kaelteanlagendaten","UniqueID","xs:string"]
["Kaelteanlagendaten","DatumInbetriebnahme","xs:dateTime"]
["Kaelteanlagendaten","DatumAusserbetriebnahme","xs:dateTime"]
["Kaelteanlagendaten","Herstellername","xs:string"]
["Kaelteanlagendaten","Modellname","xs:string"]
["Kaelteanlagendaten","NennleistungElektrisch","xs:decimal"]
["Kaelteanlagendaten","NennleistungKaelte","xs:decimal"]
["Kaelteanlagendaten","AnschaffungskostenProStueck","xs:decimal"]
["Kaelteanlagendaten","WaehrungAnschaffungskosten","xs:string"]
["Kaelteanlagendaten","KaeltemittelArt","xs:string"]
["Kaelteanlagendaten","KaeltemittelFuellmenge","xs:decimal"]
["Kaelteanlagendaten","Verdampfungsart","xs:string"]
["Kaelteanlagendaten","LeckagerateProJahr","xs:decimal"]
["Kaelteanlagendaten","KaeltemittelNachfuellmengeProJahr","xs:decimal"]
["Kaelteanlagendaten","WasserverbrauchProJahr","xs:decimal"]
["Kaelteanlagendaten","Wasserqualitaet","xs:string"]
["Kaelteanlagendaten","EnergiebedarfProJahr","xs:decimal"]
["MonitoringEnergie","MonitoringStart","xs:dateTime"]
["MonitoringEnergie","MonitoringEnde","xs:dateTime"]
["MonitoringEnergie","StrombedarfRZgesamt","xs:decimal"]
["MonitoringEnergie","SpitzenlastRZgesamt","xs:decimal"]
["MonitoringEnergie","StrombedarfServer","xs:decimal"]
["MonitoringEnergie","SpitzenlastServer","xs:decimal"]
["MonitoringEnergie","StrombedarfStorage","xs:decimal"]
["MonitoringEnergie","SpitzenlastStorage","xs:decimal"]
["MonitoringEnergie","StrombedarfNetzwerk","xs:decimal"]
["MonitoringEnergie","SpitzenlastNetzwerk","xs:decimal"]
["MonitoringEnergie","StrombedarfIT","xs:decimal"]
["MonitoringEnergie","SpitzenlastIT","xs:decimal"]
["MonitoringEnergie","StrombedarfKS","xs:decimal"]
["MonitoringEnergie","SpitzenlastKSel","xs:decimal"]
["MonitoringEnergie","KaeltearbeitKSth","xs:decimal"]
["MonitoringEnergie","KuehllastKSth","xs:decimal"]
["MonitoringEnergie","StrombedarfVerlusteUSV","xs:decimal"]
["MonitoringEnergie","SpitzenlastUSV","xs:decimal"]
["MonitoringEnergie","StrombedarfVerlustePDU","xs:decimal"]
["MonitoringEnergie","StrombedarfSonstiges","xs:decimal"]
["MonitoringEnergie","Brennstoffbedarf","xs:decimal"]
["MonitoringEnergie","Brennstoffart","xs:string"]
["MonitoringEnergie","PUE","xs:decimal"]
["MonitoringEnergie","JAZ","xs:decimal"]
["MonitoringPerformance","MonitoringStart","xs:dateTime"]
["MonitoringPerformance","MonitoringEnde","xs:dateTime"]
["MonitoringPerformance","MittelwertITEUsv","xs:decimal"]
["MonitoringPerformance","MittlereAuslastungStorage","xs:decimal"]
["MonitoringPerformance","ExterneDatenuebertragung","xs:decimal"]
["VirtuelleServerdaten","Anzahl","xs:integer"]
["VirtuelleServerdaten","UniqueID","xs:string"]
["VirtuelleServerdaten","AnzahlKerne","xs:integer"]
["VirtuelleServerdaten","GByteRAM","xs:integer"]
["VirtuelleServerdaten","GByteDisk","xs:integer"]
["VirtuelleServerdaten","MaximaleBandbreite","xs:decimal"]
["VirtuelleServerdaten","ServiceBezeichnung","xs:string"]
["VirtuelleServerdaten","ServiceEinheit","xs:string"]
["VirtuelleServerdaten","ServiceAnzahl","xs:integer"]
["VirtuelleServerdaten","Kommentar","xs:string"]